{"text_format":"1","workbook":"xlsx","n_sheets":12,"sheets":["F-22 CATAL (2)","PRE 159","PRE 159 (2)","F-22 CATAL","Hoja1","Hoja2","Hoja3","Hoja4","datos","OPUS","Hoja6","Hoja5"],"not_rendered":{"charts":0,"images":2,"macros":1,"external_links":0,"defined_names":6,"comments":0,"pivot_tables":0},"unopened":[],"bounds":{"document_bytes":16777216,"sheet_cells":100000,"rows_first":2000,"rows_last":500,"rows_between":2000,"halvings":0,"cell_chars":16384,"cell_head_chars":4096},"cells_cut":0,"cells_raw":0,"read":"whole","date_system":"1900"}

{"sheet":"F-22 CATAL (2)","index":0,"n_rows":76,"n_cols":11,"rows_kept":76,"cut":false,"hidden":true,"merged":[[73,3,73,7],[75,0,75,2],[75,3,75,5],[75,6,75,7],[76,3,76,7],[72,3,72,5],[72,6,72,7],[61,3,61,7],[63,0,63,2],[63,3,63,7],[64,6,64,7],[65,6,65,7],[66,6,66,7],[67,6,67,7],[68,6,68,7],[69,6,69,7],[70,6,70,7],[71,6,71,7],[60,3,60,5],[60,6,60,7],[50,3,50,5],[50,6,50,7],[51,3,51,7],[55,6,55,7],[56,6,56,7],[57,6,57,7],[58,6,58,7],[59,6,59,7],[53,0,53,2],[53,3,53,7],[54,6,54,7],[44,6,44,7],[45,6,45,7],[46,6,46,7],[47,6,47,7],[48,6,48,7],[49,6,49,7],[43,0,43,2],[43,3,43,7],[32,3,32,7],[34,0,34,2],[34,3,34,7],[35,6,35,7],[36,6,36,7],[37,6,37,7],[38,6,38,7],[39,6,39,7],[40,3,40,5],[40,6,40,7],[41,3,41,7],[28,0,28,2],[28,3,28,7],[29,6,29,7],[30,6,30,7],[31,3,31,5],[31,6,31,7],[26,3,26,7],[16,6,16,7],[17,6,17,7],[18,3,18,5],[18,6,18,7],[22,6,22,7],[23,6,23,7],[24,6,24,7],[25,3,25,5],[25,6,25,7],[21,0,21,2],[21,3,21,7],[10,6,10,7],[12,0,12,2],[12,3,12,7],[13,6,13,7],[14,6,14,7],[15,6,15,7],[9,0,9,2],[9,3,9,7],[0,6,0,7],[2,2,3,7],[5,2,7,5],[5,6,7,7],[6,0,7,1]]}
[null,null,null,null,null,null,"FORMATO N0. 22"]
[]
[null,"COMISION DE VIVIENDA ","CATÁLOGO DE CONCEPTOS, CANTIDADES DE OBRA, PRECIOS UNITARIOS, IMPORTES PARCIALES Y TOTALES DE LA PROPUESTA"]
[null,"DEL ESTADO DE SONORA"]
[null,null,"FECHA DE PRESENTACIÓN DE LA PROPUESTA: "]
["LICITACIÓN No.:"]
["CONSTRUCCIÓN DE  1 (UNA) VIVIENDA DE 40.01 M2, A BASE DE LOSA DE CIMENTACIÓN, MUROS DE BLOCK, TECHO DE VIGUETA Y BOVEDILLA, INSTALACIONES ELÉCTRICAS, HIDRÁULICAS Y SANITARIAS. EN EL MUNICIPIO DE __________ SONORA."]
[]
[]
[" ",null,null,"CANTIDADES DE OBRA, PRECIOS UNITARIOS E IMPORTES"]
["CLAVE","DESCRIPCIÓN","UNIDAD","CANTIDAD","P. UNIT. CON NUMERO","PRECIO UNIT. CON LETRA","IMPORTE",null,1,35]
[]
["LOSA DE CIMENTACIÓN",null,null,"PESOS 00/100 M.N.**"]
["PC-01","      Limpia, trazo y nivelación.","M2",{"$f":"+K14","v":40.01},{"$f":"+#REF!","v":{"$error":"#REF!"}},null,{"$f":"D14*E14","v":{"$error":"#REF!"}},null,40.01,44.56,{"$f":"+I14*$I$11","v":40.01}]
["PC-02","      Excavación a mano en terreno investigado en obra, cualquier profundidad, incluye afine de taludes y acarreo fuera de la obra de material no utilizable.","M3",{"$f":"+K15","v":0.88},{"$f":"+#REF!","v":{"$error":"#REF!"}},null,{"$error":"#REF!"},null,0.88,9.8800000000000008,{"$f":"+I15*$I$11","v":0.88}]
["PC-05","      Losa de Cimentación de 9 cm de espesor, a base de concreto F'c=200  kg/cm2; t.m.a. 3/4\" hecho en obra; reforzado con  malla electrosoldada 6x6-10/10, plantilla de 5 cm de espesor a base de concreto F'c=100 kg/cm2 t.m.a. 3/4\", dentellón perimetral e intermedio a base de armex de 15x20 cm; anclaje a base de  bastones con varilla 3/8\"  @ 30 con 40 cm de largo donde se indique en los planos de proyecto,  acabado pulido, incluye: fumigacion antitermitas con fumigante aditivo adherente termidor o similar, curado, vibrado, colado y todo lo necesario para su correcta ejecución.","M2",40.01,{"$f":"+#REF!","v":{"$error":"#REF!"}},null,{"$error":"#REF!"},null,40.01,8.91,40.01]
["PC-06","      Impermeabilización a base de producto epóxico color negro aplicado sobre los 12 cm del desplante y 20 cm del espesor de la losa y dentellón perimetral  en todo el perímetro, incluye: materiales, mano de obra, herramienta y equipo necesarios para su correcta ejecución.","Ml",23.12,{"$f":"+#REF!","v":{"$error":"#REF!"}},null,{"$error":"#REF!"},null,23.12,8.91,23.12]
["PC-07","      Afine, nivelacion y compactacion de terreno natural para desplante de losa de cimentacio, incluye todo lo necesario para su correcta ejecucion.","M2",40.01,{"$f":"+#REF!","v":{"$error":"#REF!"}},null,{"$error":"#REF!"},null,40.01,44.56,40.01]
[null,null,null,"LOSA DE CIMENTACIÓN",null,null,{"$f":"+SUM(G14:H18)","v":{"$error":"#REF!"}}]
[]
[]
["MUROS"]
["MC-01","      Construcción de muro de block de 12x20x40 cm junteado con mortero cemento arena proporción 1:4, incluye; Muro de enrase, plomeado, relleno de huecos en contorno de ventanas a base de concreto F´c= 150 kg/cm2 hecho en obra t.m.a. 3/4\", materiales, mano de obra, herramienta, equipo, deberá quedar aparente por ambas caras.","M2",{"$f":"+K23","v":74.010000000000005},{"$f":"+#REF!","v":{"$error":"#REF!"}},null,{"$f":"D23*E23","v":{"$error":"#REF!"}},null,74.010000000000005,79.680000000000007,{"$f":"+I23*$I$11","v":74.010000000000005}]
["MC-02","      Castillo de concreto F´c=150 kg/cm2 hecho en obra t.m.a. 3/4\", 12x12 cm de sección, armado con armex 12x12-4; incluye: cimbra aparente y descimbra; fabricación, colado y  curado del concreto; materiales y mano de obra, deberá de quedar con acabado final aparente.","ML",43.46,{"$f":"+#REF!","v":{"$error":"#REF!"}},null,{"$error":"#REF!"},null,43.46,43.46,43.46]
["MC-03","      Cadena de cerramiento de concreto F´c=150 kg/cm2 hecho en obra t.m.a. 3/4\", 12x20 cm de sección, armada con armex 12X20-4; incluye: cimbra aparente y descimbra; fabricación, colado y  curado del concreto; materiales y mano de obra, deberá de quedar con acabado final aparente.","ML",37.85,{"$f":"+#REF!","v":{"$error":"#REF!"}},null,{"$error":"#REF!"},null,37.85,40.159999999999997,37.85]
[null,null,null,"MUROS",null,null,{"$f":"+SUM(G23:H25)","v":{"$error":"#REF!"}}]
[]
[]
["TECHO"]
["CU-01","      Losa aligerada de 15 cm de espesor, a base de bovedilla de poliestireno y vigueta de alma abierta con armadura de acero diseño 10-36 de la marca deacero o similar, con patín de 12 cm de ancho por 5 cm de peralte, colado de capa de compresión de 4 cm con concreto F'c=200 kg/cm2, t.m.a. 3/4\", reforzado malla electrosoldada de 6x6-10/10, el concepto incluye: afine de la superficie superior  con acabado semipulido para recibir impermeabilización, cimbra y descimbraaparente, volado de concreto armado de 0.19x0.10m, colado, vibrado, curado y todo lo necesario para su correcta ejecución.","M2",{"$f":"+K30","v":41.36},{"$f":"+#REF!","v":{"$error":"#REF!"}},null,{"$f":"D30*E30","v":{"$error":"#REF!"}},null,41.36,46.07,{"$f":"+I30*$I$11","v":41.36}]
["CU-02","      Impermeabilización de losa de azotea a base de impermeabilizante elastomerico marca termoteck o similar de 3 años de garantía,a razón de 1 m2/lt, y  tela de refuerzo sencillo, incluye limpieza y preparación de la superficie.","M2",41.36,{"$f":"+#REF!","v":{"$error":"#REF!"}},null,{"$error":"#REF!"},null,41.36,46.07,41.36]
[null,null,null,"TECHO",null,null,{"$f":"SUM(G30:H31)","v":{"$error":"#REF!"}}]
[]
[]
["ACABADOS"]
["AC-02","      Sardinel de 10x10 cm a  base de concreto hidráulico de F'c=150 kg/cm2 t.m.a. 3/4\". Incluye: Herramienta, mano de obra y todo lo necesario para su correcta ejecución.","Ml",{"$f":"+K36","v":1.92},{"$f":"+#REF!","v":{"$error":"#REF!"}},null,{"$f":"D36*E36","v":{"$error":"#REF!"}},null,1.92,null,{"$f":"+I36*$I$11","v":1.92}]
["AC-03","      Aplanado de yeso en plafones, de 1.5 cm de espesor promedio, a plomo y regla, acabado pulido, reforzada con malla pollera en toda el área incluye: perfilado de aristas y remate en columnas, trabes y muros.","M2",35.6,{"$f":"+#REF!","v":{"$error":"#REF!"}},null,{"$error":"#REF!"},null,35.6,null,35.6]
["AC-04","      Suministro y colocación de azulejo de 20x30cm de color blanco de la marca porcelanite o similar asentado con cemento crest o similar, boquilla de 2 mm a base de junta crest anti-hongo o similar.  Incluye: Herramienta, mano de obra y todo lo necesario para su correcta ejecución.","M2",3.8,{"$f":"+#REF!","v":{"$error":"#REF!"}},null,{"$error":"#REF!"},null,3.8,null,3.8]
["AC-05","      Suministro y colocación de piso antiderrapante de 20x20cm de color blanco de la marca porcelanite o similar asentado con cemento crest o similar, boquilla de 2 mm a base de junta crest anti-hongo o similar. Incluye: Herramienta, mano de obra y todo lo necesario para su correcta ejecución.","M2",3.94,{"$f":"+#REF!","v":{"$error":"#REF!"}},null,{"$error":"#REF!"},null,3.94,null,3.94]
["AC-09","      Colocación de placa de cerámica en medidas de 20x20 cm, con cemento crest, en muro de fachada. Incluye; Material, herramienta, mano de obra y todo lo necesario para su correcta ejecución.","Pza",1,{"$f":"+#REF!","v":{"$error":"#REF!"}},null,{"$error":"#REF!"},null,1,null,1]
[null,null,null,"ACABADOS",null,null,{"$f":"+SUM(G36:H40)","v":{"$error":"#REF!"}}]
[]
[]
["PUERTAS Y VENTANAS"]
["PV-01","      Suministro e instalación de puerta tipo multypanel 0.90x2.06m con marco metálico de 0.96x2.10m fabricado a base de perfil tubular M-225., chapa tipo bola con llave para exterior modelo MH52T3  marca fanal o similar acabado en latón brillante para exterior, dos bisagras de 3\", pintura esmalte anticorrosivo color blanco en el marco metálico, el concepto incluye perfilado del hueco previo a su colocación con mortero cemento-arena 1:4. Incluye: Herramienta, mano de obra y todo lo necesario para su correcta ejecución.","Pza",{"$f":"+K45","v":1},{"$f":"+#REF!","v":{"$error":"#REF!"}},null,{"$f":"D45*E45","v":{"$error":"#REF!"}},null,1,1,{"$f":"+I45*$I$11","v":1}]
["PV-02","      Suministro e instalación de puerta de tambor 0.80x2.06m con marco metálico de 0.86x2.10m fabricado a base de perfil tubular M-225., chapa tipo bola para interior  marca fanal o similar, dos bisagras de 3\", pintura esmalte anticorrosivo color blanco en el marco metálico, el concepto incluye perfilado del hueco previo a su colocación con mortero cemento-arena 1:4. Incluye: Herramienta, mano de obra y todo lo necesario para su correcta ejecución.","Pza",{"$f":"+K46","v":2},{"$f":"+#REF!","v":{"$error":"#REF!"}},null,{"$error":"#REF!"},null,2,2,2]
["PV-03","      Suministro e instalación de puerta de tambor 0.70x2.06m con marco metálico de 0.76x2.10m fabricado a base de perfil tubular M-225., chapa tipo bola para interior  marca fanal o similar, dos bisagras de 3\", pintura esmalte anticorrosivo color blanco en el marco metálico, el concepto incluye perfilado del hueco previo a su colocación con mortero cemento-arena 1:4. Incluye: Herramienta, mano de obra y todo lo necesario para su correcta ejecución.","Pza",1,{"$f":"+#REF!","v":{"$error":"#REF!"}},null,{"$error":"#REF!"},null,1,1,1]
["PV-04","      Suministro y colocación  de ventana corrediza de 0.83x1.05m a base de perfil de aluminio anodizado natural  de 1 1/2\" con cristal claro de 3mm con un fijo lateral y un corredizo, incluye perfilado del hueco, previo a su colocación a base de mortero cemento-arena proporción  1:4. Incluye: Herramienta, mano de obra y todo lo necesario para su correcta ejecución.","Pza",3,{"$f":"+#REF!","v":{"$error":"#REF!"}},null,{"$error":"#REF!"},null,3,3,3]
["PV-05","      Suministro y colocación  de ventana corrediza de 0.60x0.40m a base de perfil de aluminio anodizado natural  de 1 1/2\" con cristal claro de 3mm con un fijo lateral y un corredizo, incluye perfilado del hueco previo a su colocación a base de mortero cemento-arena proporción  1:4. Incluye: Herramienta, mano de obra y todo lo necesario para su correcta ejecución.","Pza",1,{"$f":"+#REF!","v":{"$error":"#REF!"}},null,{"$error":"#REF!"},null,1,1,1]
["PV-06","      Suministro e instalación de puerta tipo multypanel 0.80x2.06m con marco metálico de 0.86x2.10m fabricado a base de perfil tubular M-225., chapa tipo bola con llave para exterior modelo MH52T3  marca fanal o similar acabado en latón brillante para exterior, dos bisagras de 3\", pintura esmalte anticorrosivo color blanco en el marco metálico, el concepto incluye perfilado del hueco previo a su colocación con mortero cemento-arena 1:4. Incluye: Herramienta, mano de obra y todo lo necesario para su correcta ejecución.","Pza",1,{"$f":"+#REF!","v":{"$error":"#REF!"}},null,{"$error":"#REF!"},null,1,1,1]
[null,null,null,"PUERTAS Y VENTANAS",null,null,{"$f":"+SUM(G45:H50)","v":{"$error":"#REF!"}},null,null,null,0]
[]
[]
["INSTALACIONES ELÉCTRICAS"]
["IE-01","      Suministro y colocación de centro de carga de dos circuitos  con una pieza de interruptor sencillo de 1x30 amperes, tubería galvanizada conduit pared delgada de 3/4\", el concepto incluye ranurado, resanado con mortero cemento-arena 1:4, prueba del correcto funcionamiento de las instalaciones y todo lo necesario para su correcto funcionamiento.","Pza",{"$f":"+K55","v":1},{"$f":"+#REF!","v":{"$error":"#REF!"}},null,{"$f":"D55*E55","v":{"$error":"#REF!"}},null,1,1,{"$f":"+I55*$I$11","v":1}]
["IE-02","      Salida eléctrica para tomacorriente, incluye; Contacto doble, tapa, poliducto eléctrico, cableado, ranurado, sujeción de poliducto, mano de obra y equipo.","Sal",9,{"$f":"+#REF!","v":{"$error":"#REF!"}},null,{"$error":"#REF!"},null,9,9,9]
["IE-03","      Salida eléctrica para apagador sencillo,  incluye: tapa de una via, poliducto eléctrico naranja reforzado de 1/2\", cableado con cable thw #12, ranurado, resanado con mortero cemento-arena 1:4, sujeción de poliducto, mano de obra y equipo.","Sal",3,{"$f":"+#REF!","v":{"$error":"#REF!"}},null,{"$error":"#REF!"},null,3,3,3]
["IE-04","      Salida eléctrica para apagador doble, incluye; tapa de dos vías, poliducto eléctrico naranja reforzado de 1/2\", cableado con cable thw #12, ranurado, resanado con mortero cemento-arena 1:4, sujeción de poliducto, mano de obra y equipo.","Sal",2,{"$f":"+#REF!","v":{"$error":"#REF!"}},null,{"$error":"#REF!"},null,2,2,2]
["IE-05","      Salida eléctrica para lámpara,  incluye; cableado con cable thw #12,  caja octogonal de 4\", con poliducto naranja reforzado de 1/2\", cableado, ranurado, resanado con mortero cemento arena 1:4, sujeción de poliducto, mano de obra y equipo.","Sal",7,{"$f":"+#REF!","v":{"$error":"#REF!"}},null,{"$error":"#REF!"},null,7,7,7]
["IE-06","      Suministro e instalación de foco fluorescente espiral 23 w. De luz fria con 100 W de iluminacion según proyecto, incluye: la roseta de porcelana de 4\" y todo lo necesario para su correcta instalación.","Pza",7,{"$f":"+#REF!","v":{"$error":"#REF!"}},null,{"$error":"#REF!"},null,7,7,7]
[null,null,null,"INSTALACIONES ELÉCTRICAS",null,null,{"$f":"+SUM(G55:H60)","v":{"$error":"#REF!"}}]
[]
[]
["INSTALACIONES HIDRÁULICAS Y SANITARIAS"]
["IHS-01","      Salidas para instalación sanitaria de 1 1/2\",  2\" y 4\" para ventila,  lavabo, sanitario, tarja y regadera, tubería de pvc, conexiones, pegamento, ranurado, resanado con mortero cemento-arena 1:4, pendiente, materiales, mano de obra, herramienta y equipo.","Sal",{"$f":"+K65","v":5},{"$f":"+#REF!","v":{"$error":"#REF!"}},null,{"$f":"D65*E65","v":{"$error":"#REF!"}},null,5,5,{"$f":"+I65*$I$11","v":5}]
["IHS-02","      Salidas para instalación hidráulica  para  regadera agua fría y caliente, lavabo, sanitario,  tarja o zinc, con tubería cpvc de 1/2\" marca duralon o similar, el concepto incluye: limpieza,  conexiones, ranurado, pendiente, materiales, mano de obra, herramienta,  equipo, resanado con mortero cemento-arena 1:4, prueba del correcto funcionamiento de las instalaciones y todo lo necesario para su correcto funcionamiento.","Sal",5,{"$f":"+#REF!","v":{"$error":"#REF!"}},null,{"$error":"#REF!"},null,5,5,5]
["IHS-03","      Suministro e instalación de sanitario marca lamosa o similar línea económica  en color blanco, incluye asiento, pijas, cuello de cera, manguera flexible, llave cromada de 1/2\".","Pza",1,{"$f":"+#REF!","v":{"$error":"#REF!"}},null,{"$error":"#REF!"},null,1,1,1]
["IHS-04","      Suministro e instalación de lavabo marca lamosa o similar línea económica  en color blanco, incluye: Llave mezcladora marca helvex o similar línea económica, patas, soportes, manguera flexible, llave cromada de 1/2\", cespol bote.","Pza",1,{"$f":"+#REF!","v":{"$error":"#REF!"}},null,{"$error":"#REF!"},null,1,1,1]
["IHS-05","      Suministro e instalación de regadera línea económica  incluye brazo y chapetón.","Pza",1,{"$f":"+#REF!","v":{"$error":"#REF!"}},null,{"$error":"#REF!"},null,1,1,1]
["IHS-06","      Construcción de registro sanitario de 46x45cm de medida interna, a base de ladrillo recocido común de la región de 7x14x28 cm, junteado con mortero cal-arena 1:5 + 10% de cemento, base y tapa a base de concreto F'c=150 kg/cm2 con t.m.a. 3/4\" reforzado con malla electrosoldada 6x6-10/10 el concepto incluye: enjarre interior con mortero cemento-arena 1:3, fabricación y colocación de dos jaladeras para la tapa a base de alambrón de 1/4\", con pases a base de poliducto de 1/2\". y todo lo necesario para su correcta ejecución.","Pza",2,{"$f":"+#REF!","v":{"$error":"#REF!"}},null,{"$error":"#REF!"},null,2,1,2]
["IHS-07","      Suministro e instalación de tinaco de 600 lt de la marca rotoplas o similar con el sistema de 3 capas para garantizar una vida útil de 35 años, con todos los accesorios como jarro de aire, flotador #5, válvula de llenado ¾\", multiconector con válvula de esfera, tuerca unión y válvula check, incluye base para nivelar tinaco (detalle plano), la alimentación hidráulica por medio de tubería cpvc de 1/2\" y todo lo necesario para su correcto funcionamiento.","Pza",1,{"$f":"+#REF!","v":{"$error":"#REF!"}},null,{"$error":"#REF!"},null,1,1,1]
["IHS-08","      Suministro e instalación de lavadero doble de empotrar, el concepto incluye; firme de concreto sencillo, murete de block de 12x20x40 cm, la salida sanitaria con tubería pvc de 2\" y la salida hidráulica con tubería cpvc de 1/2\", llave de jardín de 1/2\",  resanado con mortero cemento-arena 1:4  y todo lo necesario para su correcto funcionamiento.","Pza",1,{"$f":"+#REF!","v":{"$error":"#REF!"}},null,{"$error":"#REF!"},null,1,1,1]
[null,null,null,"INSTALACIONES HIDRÁULICAS Y SANITARIAS",null,null,{"$f":"+SUM(G65:H72)","v":{"$error":"#REF!"}}]
[]
[]
["TOTAL DE PRESUPUESTO **                                             ",null,null,"TOTAL DE PRESUPUESTO",null,null,{"$f":"+G73+G61+G51+G41+G32+G26+G19","v":{"$error":"#REF!"}}]

{"sheet":"PRE 159","index":1,"n_rows":27,"n_cols":6,"rows_kept":27,"cut":false,"hidden":true,"merged":[]}
["Capítulo","-",null,"TERMINACION DE 159(CIENTO CINCUENTA Y NUEVE)  RECAMARA ADICIONALES  DE 16.65 M2 URBANA  A BASE DE LOSA DE CIMENTACIÓN, MUROS DE BLOCK, TECHO DE VIGUETA E INSTALACIONES ELÉCTRICAS, EN VARIAS LOCALIDADES DE  LOS MUNICIPIOS ETCHOJOA Y HERMOSILLO  DE SONORA."]
["Subcapítulo","-","1.-","   LOSA DE CIMENTACION"]
["Concepto",null,"PC-01U","      Limpia, trazo y nivelación.","M2",821.09]
["Concepto",null,"PC-02U","      Excavación a mano en terreno investigado en obra, cualquier profundidad, incluye afine de taludes y acarreo fuera de la obra de material no utilizable.","M3",12.81]
["Concepto",null,"PC-05U","      Losa de Cimentación de 9 cm de espesor, a base de concreto F'c=200  kg/cm2; t.m.a. 3/4\" hecho en obra; reforzado con  malla electrosoldada 6x6-10/10, plantilla de 5 cm de espesor a base de concreto F'c=100 kg/cm2 t.m.a. 3/4\", dentellón perimetral e intermedio a base de armex de 15x20 cm; anclaje a base de  bastones con varilla corrugada 3/8\" grado 42 o 5/16 DA 6000  @ 30 con 40 cm de largo donde se indique en los planos de proyecto,  acabado pulido, incluye: fumigacion antitermitas con fumigante aditivo adherente termidor o similar, curado, vibrado, colado y todo lo necesario para su correcta ejecución.","M2",821.09]
["Concepto",null,"PC-06U","      Impermeabilización a base de producto epóxico color negro aplicado sobre los 12 cm del desplante y 9 cm del espesor de la losa en todo el perímetro, incluye: materiales, mano de obra, herramienta y equipo necesarios para su correcta ejecución.","Ml",941.06]
["Subcapítulo","-","2.-","   ALBAÑILERIA"]
["Concepto",null,"MC-01U","      Construcción de muro de block de 12x20x40 cm junteado con mortero cemento arena proporción 1:4, incluye; plomeado, relleno de huecos en contorno de ventanas a base de concreto F´c= 150 kg/cm2 hecho en obra t.m.a. 3/4\", materiales, mano de obra, herramienta, equipo, deberá quedar acabado comun.","M2",2222.23]
["Concepto",null,"MC-02U","      Castillo K-1 de concreto F´c=150 kg/cm2 hecho en obra t.m.a. 3/4\", 12x12 cm de sección, armado con armex 12x12-4; incluye: cimbra aparente y descimbra; fabricación, colado y  curado del concreto; materiales y mano de obra, deberá de quedar con acabado final aparente.","Ml",691.41]
["Concepto",null,"MC-02UA","      Castillo K-2 ahogados de 2.50 ML de altura incluye el pretil, con  concreto F´c=150 kg/cm2 hecho en obra t.m.a. 3/4\", con una varilla corrugada de refuerzo de 3/8\";  armado, colado y  vibrado del concreto; materiales y mano de obra,.","Ml",693.7]
["Concepto",null,"MC-03U","      Cadena de cerramiento de concreto F´c=150 kg/cm2 hecho en obra t.m.a. 3/4\", 12x20 cm de sección, armada con armex 12X20-4; incluye: cimbra aparente y descimbra; fabricación, colado y  curado del concreto; materiales y mano de obra, deberá de quedar con acabado final aparente.","Ml",1272.18]
["Subcapítulo","-","3.-","   CUBIERTA"]
["Concepto",null,"CU-01U","      Losa aligerada de 16 cm de espesor, a base de bovedilla de poliestireno y vigueta de alma abierta con armadura de acero diseño 10-36 de la marca deacero o similar, con patín de 12 cm de ancho por 5 cm de peralte, colado de capa de compresión de 4 cm con concreto F'c=200 kg/cm2, t.m.a. 3/4\", reforzado malla electrosoldada de 6x6-10/10, el concepto incluye: afine de la superficie superior  con acabado semipulido para recibir impermeabilización, cimbra y descimbra aparente, colado, vibrado, curado y todo lo necesario para su correcta ejecución. Para la ejecucion de este concepto el beneficiario aportara el importe de 4,000 pesos en la compra de los materiales alambre recocido, curacreto, malla electrosoldada 6x6 - 10/10, Vigueta alma abierta con armadura 12-36 y Bovedilla de poliestireno de 61x122 x11 cms de espesor; volado de 15x10 cms armado con varilla longitudinal de 3/8\" y bastones de 40 cms de longitud a cada 30 cms  y gotero  a  base de tuino de madera de 1\" (2.54 cms)","M2",1438.01]
["Concepto",null,"CU-02U","      Impermeabilización de losa de azotea a base de impermeabilizante elastomerico de 3 años de garantía,a razón de 1 m2/lt, y  tela reforzada, incluye: 3 manos de impermeabilizante , limpieza y preparación de la superficie.","M2",2715.25]
["Subcapítulo","-","4.-","   ACABADOS"]
["Concepto",null,"AC-03U","      Aplanado de yeso en plafones, de 1.5 cm de espesor promedio, a plomo y regla, acabado pulido, reforzada con malla pollera en toda el área incluye: perfilado de aristas y remate en columnas, trabes y muros.","M2",1376.39]
["Concepto",null,"AC-14U","      Pintura vinílica lavable en muros exteriores, interiores y plafond de yeso, incluye: material, limpieza, rebabeado, preparación de la superficie, aplicación de sellador vinílico y dos manos de pintura.","M2",14488.67]
["Concepto",null,"AC-13UA","      Aplanado grueso en muros exteriores e interiroes  a base de  mortero cemento arena 1:4 en un espesor minimo de 1.5 cms , y terminado fino floteado con mortero cemento-arena 1:3 incluye: perfilado de aristas, remates, material, mano de obra y emboquillado.","m2",12165.33]
["Subcapítulo","-","5.-","   PUERTAS Y VENTANAS"]
["Concepto",null,"PV-04U","      Suministro y colocación  de ventana corrediza de 0.83x1.05m a base de perfil de aluminio anodizado natural  de 1 1/2\" con cristal claro de 3mm con un fijo lateral y un corredizo, incluye: perfilado del hueco, previo a su colocación a base de mortero cemento-arena proporción  1:4. silicon, Herramienta, mano de obra y todo lo necesario para su correcta ejecución.","Pza",109]
["Concepto",null,"PV-01U","      Suministro e instalación de puerta de 0.90x2.06 mts, tipo multypanel lisa, fabricado con hoja de acero liso galvanizado cal. 28, con bastidor de madera de pino estufado, terminado en color blanco, relleno de esouma rigida de poliuretano con una densidad de 32 a 34 kg/m3 .,incluye marco metálico de 0.96x2.10m fabricado a base de perfil tubular M-225, chapa tipo bola con llave para exterior modelo MH52T3  marca fanal o similar acabado en latón brillante para exterior, dos bisagras de 3\", pintura esmalte anticorrosivo color blanco, perfilado del hueco previo a su colocación con mortero cemento-arena 1:4. Herramienta, mano de obra y todo lo necesario para su correcta ejecución.","Pza",116]
["Subcapítulo","-","6.-","   INSTALACIONES ELECTRICAS"]
["Concepto",null,"IE-02U","      Salida eléctrica para tomacorriente, incluye; Contacto doble, tapa, poliducto eléctrico, cableado, ranurado, sujeción de poliducto, mano de obra y equipo.","Sal",104]
["Concepto",null,"IE-03U","      Salida eléctrica para apagador sencillo de palanca color marfil marca leviton o similar,  incluye: tapa de una via, poliducto eléctrico naranja reforzado de 1/2\", cableado con cable thw #12, ranurado, resanado con mortero cemento-arena 1:4, sujeción de poliducto, mano de obra y equipo.","Sal",104]
["Concepto",null,"IE-05U","      Salida eléctrica para lámpara,  incluye; cableado con cable thw #12,  caja octogonal de 4\", con poliducto naranja reforzado de 1/2\", cableado, ranurado, resanado con mortero cemento arena 1:4, sujeción de poliducto, mano de obra y equipo.","Sal",104]
["Concepto",null,"IE-06U","      Suministro  de foco fluorescente espiral 23 w. De luz fria con 100 W de iluminacion según proyecto,","Pza",159]
["Concepto",null,"IE-07U","      Alimentación eléctrica de la vivienda existente a la recamara adicional para una distancia maxima de 6 mts el concepto incluye; poliducto naranja reforzado, cable thw #12, prueba del funcionamiento de las instalaciones y todo lo necesario para su correcta ejecucion.","Sal,",159]

{"sheet":"PRE 159 (2)","index":2,"n_rows":32,"n_cols":8,"rows_kept":32,"cut":false,"hidden":true,"merged":[[2,2,2,7]]}
[]
[]
["Capítulo","-","TERMINACION DE 159(CIENTO CINCUENTA Y NUEVE)  RECAMARA ADICIONALES  DE 16.65 M2 URBANA  A BASE DE LOSA DE CIMENTACIÓN, MUROS DE BLOCK, TECHO DE VIGUETA E INSTALACIONES ELÉCTRICAS, EN VARIAS LOCALIDADES DE  LOS MUNICIPIOS ETCHOJOA Y HERMOSILLO  DE SONORA."]
[null,null,"CLAVE","DESCRIPCION","UNIDAD","CANTIDAD","PRECIO","IMPORTE"]
["Subcapítulo","-","1.-","   LOSA DE CIMENTACION"]
["Concepto",null,"PC-01U","      Limpia, trazo y nivelación.","M2",631.79,null,{"$f":"+F6*G6","v":0}]
["Concepto",null,"PC-02U","      Excavación a mano en terreno investigado en obra, cualquier profundidad, incluye afine de taludes y acarreo fuera de la obra de material no utilizable.","M3",9.8800000000000008,null,{"$f":"+F7*G7","v":0}]
["Concepto",null,"PC-05U","      Losa de Cimentación de 9 cm de espesor, a base de concreto F'c=200  kg/cm2; t.m.a. 3/4\" hecho en obra; reforzado con  malla electrosoldada 6x6-10/10, plantilla de 5 cm de espesor a base de concreto F'c=100 kg/cm2 t.m.a. 3/4\", dentellón perimetral e intermedio a base de armex de 15x20 cm; anclaje a base de  bastones con varilla corrugada 3/8\" grado 42 o 5/16 DA 6000  @ 30 con 40 cm de largo donde se indique en los planos de proyecto,  acabado pulido, incluye: fumigacion antitermitas con fumigante aditivo adherente termidor o similar, curado, vibrado, colado y todo lo necesario para su correcta ejecución.","M2",631.79,null,0]
["Concepto",null,"PC-06U","      Impermeabilización a base de producto epóxico color negro aplicado sobre los 12 cm del desplante y 9 cm del espesor de la losa en todo el perímetro, incluye: materiales, mano de obra, herramienta y equipo necesarios para su correcta ejecución.","Ml",782.12,null,0]
["Subcapítulo","-","2.-","   ALBAÑILERIA",null,0,null,0]
["Concepto",null,"MC-01U","      Construcción de muro de block de 12x20x40 cm junteado con mortero cemento arena proporción 1:4, incluye; plomeado, relleno de huecos en contorno de ventanas a base de concreto F´c= 150 kg/cm2 hecho en obra t.m.a. 3/4\", materiales, mano de obra, herramienta, equipo, deberá quedar acabado comun.","M2",1857.73,null,0]
["Concepto",null,"MC-02U","      Castillo K-1 de concreto F´c=150 kg/cm2 hecho en obra t.m.a. 3/4\", 12x12 cm de sección, armado con armex 12x12-4; incluye: cimbra aparente y descimbra; fabricación, colado y  curado del concreto; materiales y mano de obra, deberá de quedar con acabado final aparente.","Ml",588.41,null,0]
["Concepto",null,"MC-02UA","      Castillo K-2 ahogados de 2.50 ML de altura incluye el pretil, con  concreto F´c=150 kg/cm2 hecho en obra t.m.a. 3/4\", con una varilla corrugada de refuerzo de 3/8\";  armado, colado y  vibrado del concreto; materiales y mano de obra,.","Ml",590.36,null,0]
["Concepto",null,"MC-03U","      Cadena de cerramiento de concreto F´c=150 kg/cm2 hecho en obra t.m.a. 3/4\", 12x20 cm de sección, armada con armex 12X20-4; incluye: cimbra aparente y descimbra; fabricación, colado y  curado del concreto; materiales y mano de obra, deberá de quedar con acabado final aparente.","Ml",1092.0999999999999,null,0]
["Subcapítulo","-","3.-","   CUBIERTA",null,0,null,0]
["Concepto",null,"CU-01U","      Losa aligerada de 16 cm de espesor, a base de bovedilla de poliestireno y vigueta de alma abierta con armadura de acero diseño 10-36 de la marca deacero o similar, con patín de 12 cm de ancho por 5 cm de peralte, colado de capa de compresión de 4 cm con concreto F'c=200 kg/cm2, t.m.a. 3/4\", reforzado malla electrosoldada de 6x6-10/10, el concepto incluye: afine de la superficie superior  con acabado semipulido para recibir impermeabilización, cimbra y descimbra aparente, colado, vibrado, curado y todo lo necesario para su correcta ejecución. Para la ejecucion de este concepto el beneficiario aportara el importe de 4,000 pesos en la compra de los materiales alambre recocido, curacreto, malla electrosoldada 6x6 - 10/10, Vigueta alma abierta con armadura 12-36 y Bovedilla de poliestireno de 61x122 x11 cms de espesor; volado de 15x10 cms armado con varilla longitudinal de 3/8\" y bastones de 40 cms de longitud a cada 30 cms  y gotero  a  base de tuino de madera de 1\" (2.54 cms)","M2",1241.78,null,0]
["Concepto",null,"CU-02U","      Impermeabilización de losa de azotea a base de impermeabilizante elastomerico de 3 años de garantía,a razón de 1 m2/lt, y  tela reforzada, incluye: 3 manos de impermeabilizante , limpieza y preparación de la superficie.","M2",2519.02,null,0]
["Subcapítulo","-","4.-","   ACABADOS",null,0,null,0]
["Concepto",null,"AC-03U","      Aplanado de yeso en plafones, de 1.5 cm de espesor promedio, a plomo y regla, acabado pulido, reforzada con malla pollera en toda el área incluye: perfilado de aristas y remate en columnas, trabes y muros.","M2",1208.7,null,0]
["Concepto",null,"AC-14U","      Pintura vinílica lavable en muros exteriores, interiores y plafond de yeso, incluye: material, limpieza, rebabeado, preparación de la superficie, aplicación de sellador vinílico y dos manos de pintura.","M2",13441.59,null,0]
["Concepto",null,"AC-13UA","      Aplanado grueso en muros exteriores e interiroes  a base de  mortero cemento arena 1:4 en un espesor minimo de 1.5 cms , y terminado fino floteado con mortero cemento-arena 1:3 incluye: perfilado de aristas, remates, material, mano de obra y emboquillado.","m2",11288.89,null,{"$f":"+F21*G21","v":0}]
["Subcapítulo","-","5.-","   PUERTAS Y VENTANAS",null,0,null,0]
["Concepto",null,"PV-04U","      Suministro y colocación  de ventana corrediza de 0.83x1.05m a base de perfil de aluminio anodizado natural  de 1 1/2\" con cristal claro de 3mm con un fijo lateral y un corredizo, incluye: perfilado del hueco, previo a su colocación a base de mortero cemento-arena proporción  1:4. silicon, Herramienta, mano de obra y todo lo necesario para su correcta ejecución.","Pza",98,null,0]
["Concepto",null,"PV-01U","      Suministro e instalación de puerta de 0.90x2.06 mts, tipo multypanel lisa, fabricado con hoja de acero liso galvanizado cal. 28, con bastidor de madera de pino estufado, terminado en color blanco, relleno de esouma rigida de poliuretano con una densidad de 32 a 34 kg/m3 .,incluye marco metálico de 0.96x2.10m fabricado a base de perfil tubular M-225, chapa tipo bola con llave para exterior modelo MH52T3  marca fanal o similar acabado en latón brillante para exterior, dos bisagras de 3\", pintura esmalte anticorrosivo color blanco, perfilado del hueco previo a su colocación con mortero cemento-arena 1:4. Herramienta, mano de obra y todo lo necesario para su correcta ejecución.","Pza",105,null,0]
["Subcapítulo","-","6.-","   INSTALACIONES ELECTRICAS",null,0,null,0]
["Concepto",null,"IE-02U","      Salida eléctrica para tomacorriente, incluye; Contacto doble, tapa, poliducto eléctrico, cableado, ranurado, sujeción de poliducto, mano de obra y equipo.","Sal",92,null,0]
["Concepto",null,"IE-03U","      Salida eléctrica para apagador sencillo de palanca color marfil marca leviton o similar,  incluye: tapa de una via, poliducto eléctrico naranja reforzado de 1/2\", cableado con cable thw #12, ranurado, resanado con mortero cemento-arena 1:4, sujeción de poliducto, mano de obra y equipo.","Sal",92,null,0]
["Concepto",null,"IE-05U","      Salida eléctrica para lámpara,  incluye; cableado con cable thw #12,  caja octogonal de 4\", con poliducto naranja reforzado de 1/2\", cableado, ranurado, resanado con mortero cemento arena 1:4, sujeción de poliducto, mano de obra y equipo.","Sal",92,null,0]
["Concepto",null,"IE-06U","      Suministro  de foco fluorescente espiral 23 w. De luz fria con 100 W de iluminacion según proyecto,","Pza",146,null,0]
["Concepto",null,"IE-07U","      Alimentación eléctrica de la vivienda existente a la recamara adicional para una distancia maxima de 6 mts el concepto incluye; poliducto naranja reforzado, cable thw #12, prueba del funcionamiento de las instalaciones y todo lo necesario para su correcta ejecucion.","Sal,",146,null,{"$f":"+F30*G30-0.22","v":-0.22}]
[]
[null,null,null,null,null,null,"TOTAL",{"$f":"SUM(H6:H30)","v":-0.22}]

{"sheet":"F-22 CATAL","index":3,"n_rows":63,"n_cols":23,"rows_kept":63,"cut":false,"hidden":false,"merged":[[50,0,50,2],[50,3,50,7],[54,6,54,7],[14,6,14,7],[15,6,15,7],[16,6,16,7],[30,0,30,2],[30,3,30,7],[17,3,17,5],[17,6,17,7],[20,0,20,2],[20,3,20,7],[21,6,21,7],[22,6,22,7],[23,6,23,7],[27,3,27,5],[0,6,0,7],[2,2,3,7],[13,6,13,7],[6,2,7,5],[6,6,7,7],[4,6,4,7],[27,6,27,7],[28,3,28,7],[24,6,24,7],[6,0,7,1],[9,0,9,2],[9,3,9,7],[10,6,10,7],[12,0,12,2],[12,3,12,7],[25,6,25,7],[26,6,26,7],[31,6,31,7],[33,3,33,5],[33,6,33,7],[34,3,34,7],[36,0,36,2],[36,3,36,7],[46,0,46,2],[46,3,46,7],[47,6,47,7],[37,6,37,7],[38,6,38,7],[39,6,39,7],[43,3,43,5],[43,6,43,7],[44,3,44,7],[40,6,40,7],[41,6,41,7],[49,3,49,5],[49,6,49,7],[32,6,32,7],[53,6,53,7],[48,6,48,7],[51,6,51,7],[52,6,52,7],[42,6,42,7],[55,6,55,7],[62,0,62,2],[62,3,62,5],[62,6,62,7],[63,3,63,7],[56,3,56,5],[56,6,56,7],[57,0,57,2],[57,3,57,7],[58,6,58,7],[59,3,59,5],[59,6,59,7]]}
[null,null,null,null,null,null,"FORMATO N0. 22"]
[null,null,null,null,null,null,null,null,null,"CONSTRUCCION DE 18(DIEZ Y OCHO) RECAMARAS ADICIONALES  DE 16.65 M2 EN AREA URBANA  A BASE DE LOSA DE CIMENTACIÓN, MUROS DE BLOCK, TECHO DE VIGUETA E INSTALACIONES ELÉCTRICAS, EN  VARIAS LOCALIDADES DEL MUNICIPIO DE ALAMOS, SONORA."]
[null,"COMISION DE VIVIENDA ","CATÁLOGO DE CONCEPTOS, CANTIDADES DE OBRA, PRECIOS UNITARIOS, IMPORTES PARCIALES Y TOTALES DE LA PROPUESTA",null,null,null,null,null,null,null,null,null,null,null,null,null,null,null,null,null,null,null,{"$f":"+A7","v":"CONSTRUCCION DE 25(VEINTICINCO) RECAMARAS ADICIONALES  DE 16.65 M2 EN AREA URBANA  A BASE DE LOSA DE CIMENTACIÓN, MUROS DE BLOCK, TECHO DE VIGUETA E INSTALACIONES ELÉCTRICAS, EN  VARIAS LOCALIDADES Y MUNICIPIOS DE SONORA."}]
[null,"DEL ESTADO DE SONORA"]
[null,null,"FECHA DE PRESENTACIÓN DE LA PROPUESTA: ",null,null,null,{"$f":"IF(+datos!B10=\"\",\"\",+datos!B10)","v":""}]
[{"$f":"CONCATENATE(\"LICITACIÓN No.: \",+datos!B1)","v":"LICITACIÓN No.: "},null,"F. INICIO",{"$f":"IF(+datos!B6=\"\",\"\",+datos!B6)","v":""},"F. TERMINO",{"$f":"IF(+datos!B7=\"\",\"\",+datos!B7)","v":""},"PLAZO:",{"$f":"CONCATENATE(+datos!B8, \" DIAS NATURALES.\")","v":"90 DIAS NATURALES."}]
[{"$f":"+datos!B9","v":"CONSTRUCCION DE 25(VEINTICINCO) RECAMARAS ADICIONALES  DE 16.65 M2 EN AREA URBANA  A BASE DE LOSA DE CIMENTACIÓN, MUROS DE BLOCK, TECHO DE VIGUETA E INSTALACIONES ELÉCTRICAS, EN  VARIAS LOCALIDADES Y MUNICIPIOS DE SONORA."},null,"(Nombre o razón social del licitante)",null,null,null,"(Nombre y firma del apoderado Legal)"]
[]
[]
[" ",null,null,"CANTIDADES DE OBRA, PRECIOS UNITARIOS E IMPORTES"]
["CLAVE","DESCRIPCIÓN","UNIDAD","CANTIDAD","P. UNIT. CON NUMERO","PRECIO UNIT. CON LETRA","IMPORTE",null,{"$f":"+datos!B4","v":25}]
[]
["LOSA DE CIMENTACIÓN",null,null,"PESOS 00/100 M.N.**"]
[{"$f":"+OPUS!C3","v":"PC-01U"},{"$f":"CONCEPTOS(OPUS!$C$3:$G$33,$A14,2)","v":"      Limpia, trazo y nivelación."},{"$f":"CONCEPTOS(OPUS!$C$3:$G$33,$A14,3)","v":"M2"},{"$f":"+K14","v":416.25},{"$f":"CONCEPTOS(OPUS!$C$3:$G$33,$A14,5)","v":0},null,{"$f":"D14*E14","v":0},null,{"$f":"CONCEPTOS(OPUS!$C$3:$G$33,$A14,7)","v":16.649999999999999},null,{"$f":"+I14*$I$11","v":416.25}]
[{"$f":"+OPUS!C4","v":"PC-07U"},{"$f":"CONCEPTOS(OPUS!$C$3:$G$33,$A15,2)","v":"      Afine y compactacion de terreno por medios mecanicos utilizando bailarina, para desplante de losa de cimentacion, incluye todo lo necesario para su correcta ejecucion."},{"$f":"CONCEPTOS(OPUS!$C$3:$G$33,$A15,3)","v":"M2"},{"$f":"+K15","v":416.25},{"$f":"CONCEPTOS(OPUS!$C$3:$G$33,$A15,5)","v":0},null,{"$f":"D15*E15","v":0},null,{"$f":"CONCEPTOS(OPUS!$C$3:$G$33,$A15,7)","v":16.649999999999999},null,{"$f":"+I15*$I$11","v":416.25}]
[{"$f":"+OPUS!C5","v":"PC-02U"},{"$f":"CONCEPTOS(OPUS!$C$3:$G$33,$A16,2)","v":"      Excavación a mano en terreno investigado en obra, cualquier profundidad, incluye afine de taludes y acarreo fuera de la obra de material no utilizable."},{"$f":"CONCEPTOS(OPUS!$C$3:$G$33,$A16,3)","v":"M3"},6,{"$f":"CONCEPTOS(OPUS!$C$3:$G$33,$A16,5)","v":0},null,0,null,{"$f":"CONCEPTOS(OPUS!$C$3:$G$33,$A16,7)","v":0.24},null,6]
[{"$f":"+OPUS!C6","v":"PC-05U"},{"$f":"CONCEPTOS(OPUS!$C$3:$G$33,$A17,2)","v":"      Losa de Cimentación de 9 cm de espesor, a base de concreto F'c=200  kg/cm2; t.m.a. 3/4\" hecho en obra; reforzado con  malla electrosoldada 6x6-10/10,  dentellón perimetral e intermedio a base de armex de 15x20 cm; anclaje a base de  bastones con varilla corrugada 3/8\" grado 42 o 5/16 DA 6000  @ 30 con 40 cm de largo donde se indique en los planos de proyecto,  acabado pulido, incluye: curado, vibrado, colado y todo lo necesario para su correcta ejecución."},{"$f":"CONCEPTOS(OPUS!$C$3:$G$33,$A17,3)","v":"M2"},{"$f":"+K17","v":416.25},{"$f":"CONCEPTOS(OPUS!$C$3:$G$33,$A17,5)","v":0},null,{"$f":"D17*E17","v":0},null,{"$f":"CONCEPTOS(OPUS!$C$3:$G$33,$A17,7)","v":16.649999999999999},null,{"$f":"+I17*$I$11","v":416.25}]
[null,null,null,"LOSA DE CIMENTACIÓN",null,null,{"$f":"+SUM(G14:H17)","v":0},null,null,null,0]
[]
[]
["ALBAÑILERIA"]
[{"$f":"+OPUS!C8","v":"MC-01U"},{"$f":"CONCEPTOS(OPUS!$C$3:$G$33,$A22,2)","v":"      Construcción de muro de block de 12x20x40 cm junteado con mortero cemento arena proporción 1:4, incluye; plomeado, relleno de huecos en contorno de ventanas a base de concreto F´c= 150 kg/cm2 hecho en obra t.m.a. 3/4\", materiales, mano de obra, herramienta, equipo, deberá quedar acabado comun."},{"$f":"CONCEPTOS(OPUS!$C$3:$G$33,$A22,3)","v":"M2"},{"$f":"+K22","v":657.5},{"$f":"CONCEPTOS(OPUS!$C$3:$G$33,$A22,5)","v":0},null,{"$f":"D22*E22","v":0},null,{"$f":"CONCEPTOS(OPUS!$C$3:$G$33,$A22,7)","v":26.3},null,{"$f":"+I22*$I$11","v":657.5}]
[{"$f":"+OPUS!C9","v":"MC-02U"},{"$f":"CONCEPTOS(OPUS!$C$3:$G$33,$A23,2)","v":"      Castillo K-1 de concreto F´c=150 kg/cm2 hecho en obra t.m.a. 3/4\", 12x12 cm de sección, armado con armex 12x12-4; incluye: cimbra aparente y descimbra; fabricación, colado y  curado del concreto; materiales y mano de obra, deberá de quedar con acabado final aparente."},{"$f":"CONCEPTOS(OPUS!$C$3:$G$33,$A23,3)","v":"Ml"},255,{"$f":"CONCEPTOS(OPUS!$C$3:$G$33,$A23,5)","v":0},null,0,null,{"$f":"CONCEPTOS(OPUS!$C$3:$G$33,$A23,7)","v":10.199999999999999},null,255]
[{"$f":"+OPUS!C10","v":"MC-02UA"},{"$f":"CONCEPTOS(OPUS!$C$3:$G$33,$A24,2)","v":"      Castillo K-2 ahogados desde el desplante hasta la losa de azotea cruzando las cadenas o dalas de refuerzo a base de concreto F´c=150 kg/cm2 hecho en obra t.m.a. 3/4\", con una varilla corrugada de refuerzo de 3/8\" a todo lo largo el concepto incluye:  armado, colado, vibrado del concreto, materiales , mano de obra, herramienta y todo lo necesario para su correcta ejecucion."},{"$f":"CONCEPTOS(OPUS!$C$3:$G$33,$A24,3)","v":"Ml"},216.5,{"$f":"CONCEPTOS(OPUS!$C$3:$G$33,$A24,5)","v":0},null,0,null,{"$f":"CONCEPTOS(OPUS!$C$3:$G$33,$A24,7)","v":8.66},null,216.5]
[{"$f":"+OPUS!C11","v":"MC-08U"},{"$f":"CONCEPTOS(OPUS!$C$3:$G$33,$A25,2)","v":"      Cadena intermedia ubicada a la quinta hilada a base block dala de 12x20x40 cms, relleno con concreto F'c=150 kg/cm2 y una varilla corrugada de 3/8\" el concepto incluye block dala de 12x20x40 cms, mortero cemento -arena 1:4, materiales, mano de obra, herramienta, equipo y todo lo necesario para su correcta ejecucion."},{"$f":"CONCEPTOS(OPUS!$C$3:$G$33,$A25,3)","v":"ml"},339.25,{"$f":"CONCEPTOS(OPUS!$C$3:$G$33,$A25,5)","v":0},null,0,null,{"$f":"CONCEPTOS(OPUS!$C$3:$G$33,$A25,7)","v":13.57},null,{"$f":"+I25*$I$11","v":339.25}]
[{"$f":"+OPUS!C12","v":"MC-12U"},{"$f":"CONCEPTOS(OPUS!$C$3:$G$33,$A26,2)","v":"      Cadena cerramiento ubicada a la onceava hilada a base block dala de 12x20x40 cms, relleno con concreto F'c=150 kg/cm2 y una varilla corrugada de 3/8\" el concepto incluye block dala de 12x20x40 cms,  apuntalamiento en claros de puertas y ventanas, mortero cemento -arena 1:4, materiales, mano de obra, herramienta, equipo y todo lo necesario para su correcta ejecucion."},{"$f":"CONCEPTOS(OPUS!$C$3:$G$33,$A26,3)","v":"ml"},{"$f":"+K26","v":384},{"$f":"CONCEPTOS(OPUS!$C$3:$G$33,$A26,5)","v":0},null,{"$f":"D26*E26","v":0},null,{"$f":"CONCEPTOS(OPUS!$C$3:$G$33,$A26,7)","v":15.36},null,{"$f":"+I26*$I$11","v":384}]
[{"$f":"+OPUS!C13","v":"MC-09U"},{"$f":"CONCEPTOS(OPUS!$C$3:$G$33,$A27,2)","v":"      Construcción de muro de enrase a base de block de 12x20x40 cm junteado con mortero cemento arena proporción 1:4, incluye; materiales, mano de obra, herramienta, equipo, deberá quedar acabado comun."},{"$f":"CONCEPTOS(OPUS!$C$3:$G$33,$A27,3)","v":"M2"},96,{"$f":"CONCEPTOS(OPUS!$C$3:$G$33,$A27,5)","v":0},null,0,null,{"$f":"CONCEPTOS(OPUS!$C$3:$G$33,$A27,7)","v":3.84},null,96]
[null,null,null,{"$f":"+A21","v":"ALBAÑILERIA"},null,null,{"$f":"SUM(G22:H27)","v":0}]
[]
[]
["TECHO"]
[{"$f":"+OPUS!C15","v":"CU-01U"},{"$f":"CONCEPTOS(OPUS!$C$3:$G$33,$A32,2)","v":"      Losa aligerada de 15 cm de espesor, a base de bovedilla de poliestireno con densidad de 12 kg/m3 y espesor de 11 cms,  vigueta pretensada modelo V11-40 tipo trabis o similar, con patín de 10.50 cm de ancho, colado de capa de compresión  de 4  cms con concreto F'c=200 kg/cm2, t.m.a. 3/4\", reforzado malla electrosoldada de 6x6-10/10, el concepto incluye: afine de la superficie superior  con acabado pulido para recibir impermeabilización, cimbra y descimbra aparente, tuino o chaflan de madera para formar gotero, colado, vibrado, curado y todo lo necesario para su correcta ejecución."},{"$f":"CONCEPTOS(OPUS!$C$3:$G$33,$A32,3)","v":"M2"},{"$f":"+K32","v":437.75},{"$f":"CONCEPTOS(OPUS!$C$3:$G$33,$A32,5)","v":0},null,{"$f":"D32*E32","v":0},null,{"$f":"CONCEPTOS(OPUS!$C$3:$G$33,$A32,7)","v":17.510000000000002},null,{"$f":"+I32*$I$11","v":437.75}]
[{"$f":"+OPUS!C16","v":"CU-02U"},{"$f":"CONCEPTOS(OPUS!$C$3:$G$33,$A33,2)","v":"      Impermeabilización de losa de azotea a base de impermeabilizante fibratado de 5 años de garantía de la marca PRISA o similar, a razón de 1 m2/lt, y  tela reforzada, incluye limpieza, preparación de la superficie, sellado y todo lo necesario para su correcta ejecucion."},{"$f":"CONCEPTOS(OPUS!$C$3:$G$33,$A33,3)","v":"M2"},437.75,{"$f":"CONCEPTOS(OPUS!$C$3:$G$33,$A33,5)","v":0},null,0,null,{"$f":"CONCEPTOS(OPUS!$C$3:$G$33,$A33,7)","v":17.510000000000002},null,437.75]
[null,null,null,"TECHO",null,null,{"$f":"SUM(G32:H33)","v":0}]
[]
[]
["ACABADOS"]
[{"$f":"+OPUS!C18","v":"AC-03U"},{"$f":"CONCEPTOS(OPUS!$C$3:$G$33,$A38,2)","v":"      Aplanado de yeso en plafones, de 1.0 cm de espesor promedio, a plomo y regla, acabado pulido, reforzada con cinta auto adherible de fibra de vidrio en un ancho de 20 cms a lo largo de la vigueta incluye: hule negro para no ensuciar pisos, perfilado de aristas, remate en losas y muros."},{"$f":"CONCEPTOS(OPUS!$C$3:$G$33,$A38,3)","v":"M2"},{"$f":"+K38","v":369.5},{"$f":"CONCEPTOS(OPUS!$C$3:$G$33,$A38,5)","v":0},null,{"$f":"D38*E38","v":0},null,{"$f":"CONCEPTOS(OPUS!$C$3:$G$33,$A38,7)","v":14.78},null,{"$f":"+I38*$I$11","v":369.5}]
[{"$f":"+OPUS!C19","v":"AC-13UA"},{"$f":"CONCEPTOS(OPUS!$C$3:$G$33,$A39,2)","v":"      Aplanado grueso en muros exteriores  a base de  mortero cemento arena 1:4 en un espesor minimo de 1 cms , y terminado fino floteado con mortero cemento-arena 1:3 incluye: perfilado de aristas, remates, material, mano de obra y emboquillado."},{"$f":"CONCEPTOS(OPUS!$C$3:$G$33,$A39,3)","v":"m2"},{"$f":"+K39","v":1075.25},{"$f":"CONCEPTOS(OPUS!$C$3:$G$33,$A39,5)","v":0},null,{"$f":"D39*E39","v":0},null,{"$f":"CONCEPTOS(OPUS!$C$3:$G$33,$A39,7)","v":43.01},null,{"$f":"+I39*$I$11","v":1075.25}]
[{"$f":"+OPUS!C20","v":"AC-13UB"},{"$f":"CONCEPTOS(OPUS!$C$3:$G$33,$A40,2)","v":"      Repellado en interiores a base de  mortero cemento arena 1:4 y terminado fino floteado incluye: perfilado de aristas, remates, material, mano de obra y emboquillado."},{"$f":"CONCEPTOS(OPUS!$C$3:$G$33,$A40,3)","v":"m2"},907,{"$f":"CONCEPTOS(OPUS!$C$3:$G$33,$A40,5)","v":0},null,0,null,{"$f":"CONCEPTOS(OPUS!$C$3:$G$33,$A40,7)","v":36.28},null,907]
[{"$f":"+OPUS!C21","v":"AC-14U"},{"$f":"CONCEPTOS(OPUS!$C$3:$G$33,$A41,2)","v":"      Pintura vinílica lavable garantia de 10 años de marca berelex o similar, en color blanco sobre muros exteriores, interiores y plafond de yeso, incluye: hule negro para para no manchar pisos, material, limpieza, rebabeado, preparación de la superficie, aplicación de sellador vinílico y dos manos de pintura."},{"$f":"CONCEPTOS(OPUS!$C$3:$G$33,$A41,3)","v":"M2"},{"$f":"+K41","v":2351.75},{"$f":"CONCEPTOS(OPUS!$C$3:$G$33,$A41,5)","v":0},null,{"$f":"D41*E41","v":0},null,{"$f":"CONCEPTOS(OPUS!$C$3:$G$33,$A41,7)","v":94.07},null,{"$f":"+I41*$I$11","v":2351.75}]
[{"$f":"+OPUS!C22","v":"AC-15U"},{"$f":"CONCEPTOS(OPUS!$C$3:$G$33,$A42,2)","v":"      Suministro y colocacion de placa ceramica con logotipo coves sonora formato de 31x61 cms asentada al muro con cemento blanco de la marca crest o similar, ahogada en el enjarre concepto incluye materiales, mano de obra, herramienta y todo lo necesario para su correcta ejecucion."},{"$f":"CONCEPTOS(OPUS!$C$3:$G$33,$A42,3)","v":"pza"},{"$f":"+K42","v":25},{"$f":"CONCEPTOS(OPUS!$C$3:$G$33,$A42,5)","v":0},null,{"$f":"D42*E42","v":0},null,{"$f":"CONCEPTOS(OPUS!$C$3:$G$33,$A42,7)","v":1},null,{"$f":"+I42*$I$11","v":25}]
[{"$f":"+OPUS!C23","v":"AC-16U"},{"$f":"CONCEPTOS(OPUS!$C$3:$G$33,$A43,2)","v":"      Suministro y colocacion de manta fabricada en vinil de 1.00 x 1.00 mts con informacion relacionado con el programa el concepto incluye material, mano de obra, herramienta y todo lo necesario para su correcta ejecucion."},{"$f":"CONCEPTOS(OPUS!$C$3:$G$33,$A43,3)","v":"pza"},{"$f":"+K43","v":25},{"$f":"CONCEPTOS(OPUS!$C$3:$G$33,$A43,5)","v":0},null,{"$f":"D43*E43","v":0},null,{"$f":"CONCEPTOS(OPUS!$C$3:$G$33,$A43,7)","v":1},null,{"$f":"+I43*$I$11","v":25}]
[null,null,null,"ACABADOS",null,null,{"$f":"SUM(G38:H43)","v":0}]
[]
[]
["PUERTAS Y VENTANAS"]
[{"$f":"+OPUS!C25","v":"PV-01U"},{"$f":"CONCEPTOS(OPUS!$C$3:$G$33,$A48,2)","v":"      Suministro e instalación de puerta de 0.90x2.06 mts, tipo multypanel lisa, fabricado con hoja de acero liso galvanizado cal. 28, con bastidor de madera de pino estufado, terminado en color blanco, relleno de esouma rigida de poliuretano con una densidad de 32 a 34 kg/m3 .,incluye marco metálico de 0.96x2.10m fabricado a base de perfil tubular M-225, chapa tipo bola con llave para exterior modelo MH52T3  marca fanal o similar acabado en latón brillante para exterior, dos bisagras de 3\", pintura esmalte anticorrosivo color blanco, perfilado del hueco previo a su colocación con mortero cemento-arena 1:4. Herramienta, mano de obra y todo lo necesario para su correcta ejecución."},{"$f":"CONCEPTOS(OPUS!$C$3:$G$33,$A48,3)","v":"Pza"},{"$f":"+K48","v":25},{"$f":"CONCEPTOS(OPUS!$C$3:$G$33,$A48,5)","v":0},null,{"$f":"D48*E48","v":0},null,{"$f":"CONCEPTOS(OPUS!$C$3:$G$33,$A48,7)","v":1},null,{"$f":"+I48*$I$11","v":25}]
[{"$f":"+OPUS!C26","v":"PV-04U"},{"$f":"CONCEPTOS(OPUS!$C$3:$G$33,$A49,2)","v":"      Suministro y colocación  de ventana corrediza de 0.83x1.05m a base de perfil de aluminio anodizado natural  de 1 1/2\" con cristal claro de 3mm con un fijo lateral y un corredizo, incluye: perfilado del hueco, previo a su colocación a base de mortero cemento-arena proporción  1:4. silicon, Herramienta, mano de obra y todo lo necesario para su correcta ejecución."},{"$f":"CONCEPTOS(OPUS!$C$3:$G$33,$A49,3)","v":"Pza"},25,{"$f":"CONCEPTOS(OPUS!$C$3:$G$33,$A49,5)","v":0},null,0,null,{"$f":"CONCEPTOS(OPUS!$C$3:$G$33,$A49,7)","v":1},null,25]
[null,null,null,"PUERTAS Y VENTANAS",null,null,{"$f":"+SUM(G45:H49)","v":0}]
[{"$f":"+Hoja4!D28","v":"      INSTALACIONES ELECTRICAS"},{"$f":"+Hoja4!D28","v":"      INSTALACIONES ELECTRICAS"},{"$f":"+Hoja4!E28","v":0},{"$f":"+K51","v":0},null,null,{"$f":"D51*E51","v":0},null,{"$f":"+Hoja4!F28","v":0},null,{"$f":"+I51*$I$11","v":0}]
[{"$f":"+OPUS!C28","v":"IE-02U"},{"$f":"CONCEPTOS(OPUS!$C$3:$G$33,$A52,2)","v":"      Salida eléctrica para tomacorriente, incluye; Contacto doble, tapa, poliducto eléctrico, cableado, ranurado, sujeción de poliducto, mano de obra y equipo."},{"$f":"CONCEPTOS(OPUS!$C$3:$G$33,$A52,3)","v":"Sal"},50,{"$f":"CONCEPTOS(OPUS!$C$3:$G$33,$A52,5)","v":0},null,0,null,{"$f":"CONCEPTOS(OPUS!$C$3:$G$33,$A52,7)","v":2},null,50]
[{"$f":"+OPUS!C29","v":"IE-04U"},{"$f":"CONCEPTOS(OPUS!$C$3:$G$33,$A53,2)","v":"      Salida eléctrica para apagador doble de palanca color marfil marca leviton o similar , incluye; tapa de dos vías, poliducto eléctrico naranja reforzado de 1/2\", cableado con cable thw #12, ranurado, resanado con mortero cemento-arena 1:4, sujeción de poliducto, mano de obra y equipo."},{"$f":"CONCEPTOS(OPUS!$C$3:$G$33,$A53,3)","v":"Sal"},25,{"$f":"CONCEPTOS(OPUS!$C$3:$G$33,$A53,5)","v":0},null,0,null,{"$f":"CONCEPTOS(OPUS!$C$3:$G$33,$A53,7)","v":1},null,25]
[{"$f":"+OPUS!C30","v":"IE-05U"},{"$f":"CONCEPTOS(OPUS!$C$3:$G$33,$A54,2)","v":"      Salida eléctrica para lámpara,  incluye; cableado con cable thw #12,  caja octogonal de 4\", con poliducto naranja reforzado de 1/2\", cableado, ranurado, resanado con mortero cemento arena 1:4, sujeción de poliducto, mano de obra y equipo."},{"$f":"CONCEPTOS(OPUS!$C$3:$G$33,$A54,3)","v":"Sal"},50,{"$f":"CONCEPTOS(OPUS!$C$3:$G$33,$A54,5)","v":0},null,0,null,{"$f":"CONCEPTOS(OPUS!$C$3:$G$33,$A54,7)","v":2},null,50]
[{"$f":"+OPUS!C31","v":"IE-06U"},{"$f":"CONCEPTOS(OPUS!$C$3:$G$33,$A55,2)","v":"      Suministro  de foco fluorescente espiral 23 w. De luz fria con 100 W de iluminacion según proyecto,"},{"$f":"CONCEPTOS(OPUS!$C$3:$G$33,$A55,3)","v":"Pza"},50,{"$f":"CONCEPTOS(OPUS!$C$3:$G$33,$A55,5)","v":0},null,0,null,{"$f":"CONCEPTOS(OPUS!$C$3:$G$33,$A55,7)","v":2},null,50]
[{"$f":"+OPUS!C32","v":"IE-07U"},{"$f":"CONCEPTOS(OPUS!$C$3:$G$33,$A56,2)","v":"      Alimentación eléctrica de la vivienda existente a la recamara adicional para una distancia maxima de 6 mts el concepto incluye; poliducto naranja reforzado, cable thw #12, prueba del funcionamiento de las instalaciones y todo lo necesario para su correcta ejecucion."},{"$f":"CONCEPTOS(OPUS!$C$3:$G$33,$A56,3)","v":"Sal,"},25,{"$f":"CONCEPTOS(OPUS!$C$3:$G$33,$A56,5)","v":0},null,0,null,{"$f":"CONCEPTOS(OPUS!$C$3:$G$33,$A56,7)","v":1},null,25]
[null,null,null,"INSTALACIONES ELECTRICAS",null,null,{"$f":"SUM(G52:H56)","v":0},null,null,null,0]
[{"$f":"+OPUS!D33","v":"   LIMPIEZA DE LA OBRA"},{"$f":"+Hoja4!D35","v":0},{"$f":"+Hoja4!E35","v":0},{"$f":"+K58","v":0},null,null,{"$f":"D58*E58","v":0},null,{"$f":"+Hoja4!F35","v":0},null,{"$f":"+I58*$I$11","v":0}]
[{"$f":"+OPUS!C34","v":"LIM-01"},{"$f":"CONCEPTOS(OPUS!$C$3:$G$33,$A59,2)","v":"      Limpieza de la obra  que consiste en  limpiar pisos, muros, techos, vidrios, puertas, ventanas, accesorios electricos  incluye carga, acarreo dentro y fuera de la obra de todo material de desperdicio producto de la misma durante el tiempo de ejecucion de la obra."},{"$f":"CONCEPTOS(OPUS!$C$3:$G$33,$A59,3)","v":"M2"},416.25,{"$f":"+OPUS!G34","v":0},null,0,null,{"$f":"CONCEPTOS(OPUS!$C$3:$G$33,$A59,7)","v":16.649999999999999},null,416.25]
[null,null,null,{"$f":"+A58","v":"   LIMPIEZA DE LA OBRA"},null,null,{"$f":"SUM(G59:H59)","v":0},null,null,null,0]
[]
[]
["TOTAL DE PRESUPUESTO **                                             ",null,null,"TOTAL DE PRESUPUESTO",null,null,{"$f":"+G18+G28+G34+G44+G50+G57+G60","v":0},null,{"$f":"+G63/datos!B4","v":0}]

{"sheet":"Hoja1","index":4,"n_rows":47,"n_cols":9,"rows_kept":47,"cut":false,"hidden":true,"merged":[]}
[]
[]
[]
[null,"-","Capítulo",null,"CONSTRUCCIÓN DE VIVIENDA DE 44.56 M2, A BASE DE LOSA DE CIMENTACIÓN, MUROS DE BLOCK, TECHO DE VIGUETA Y BOVEDILLA, INSTALACIONES ELÉCTRICAS, HIDRÁULICAS Y SANITARIAS.",null,null,null,116600]
[null,"-","Subcapítulo",null,"   LOSA DE CIMENTACIÓN",null,null,null,21033.97]
[null,null,"Concepto","PC-01","      Limpia, trazo y nivelación.","M2",44.56,9.4499999999999993,421.09]
[null,null,"Concepto","PC-02","      Excavación a mano en terreno investigado en obra, cualquier profundidad, incluye afine de taludes y acarreo fuera de la obra de material no utilizable.","M3",9.8800000000000008,117.4,1159.9100000000001]
[null,null,"Concepto","PC-03","      Suministro de material de banco, bajo firmes, incluyendo producción, derechos, fletes, suministro en obra, acarreos en obra y afine. (volumen medido compacto).","M3",8.91,140,1247.4000000000001]
[null,null,"Concepto","PC-04","      Relleno y compactado de material con pisón de mano y agua en capas de espesor máximo de 20 cm, incluye acarreo en carretilla libre a 20 m.","M3",8.91,65.66,585.03]
[null,null,"Concepto","PC-05","      Losa de Cimentación de 9 cm de espesor, a base de concreto F'c=200  kg/cm2; t.m.a. 3/4\" hecho en obra; reforzado con  malla electrosoldada 6x6-10/10, plantilla de 5 cm de espesor a base de concreto F'c=100 kg/cm2 t.m.a. 3/4\", dentellón perimetral e intermedio a base de armex de 15x20 cm; anclaje a base de  bastones con varilla 3/8\"  @ 30 con 40 cm de largo donde se indique en los planos de proyecto,  acabado pulido, incluye  curado, vibrado, colado y todo lo necesario para su correcta ejecución.","M2",44.56,373.14,16627.12]
[null,null,"Concepto","PC-06","      Impermeabilización a base de producto epóxico color negro aplicado sobre los 12 cm del desplante y 20 cm del espesor de la losa y dentellón perimetral  en todo el perímetro, incluye: materiales, mano de obra, herramienta y equipo necesarios para su correcta ejecución.","ML",26.9,36.93,993.42]
[null,"-","Subcapítulo",null,"   MUROS",null,null,null,29572.67]
[null,null,"Concepto","MC-04","      Construcción de muro de block de 12x20x40 cm junteado con mortero cemento arena proporción 1:4, incluye: Muro de enrase, plomeado, relleno de huecos en contorno de ventanas a base de concreto F´c= 150 kg/cm2 hecho en obra t.m.a. 3/4\", materiales, mano de obra, herramienta, equipo y todo lo necesario para su correcta ejecución.","M2",81.040000000000006,219.73,17806.919999999998]
[null,null,"Concepto","MC-05","      Castillo de concreto F´c=150 kg/cm2 hecho en obra t.m.a. 3/4\", 12x12 cm de sección, armado con armex 12x12-4; incluye: Cimbra y descimbra; fabricación, colado y  curado del concreto; materiales, mano de obra, equipo y todo lo necesario para su correcta ejecución.","ML",43.38,134.97,5855]
[null,null,"Concepto","MC-06","      Cadena de cerramiento de concreto F´c=150 kg/cm2 hecho en obra t.m.a. 3/4\", 12x20 cm de sección, armada con armex 12X20-4; incluye: Cimbra y descimbra; fabricación, colado y  curado del concreto; materiales, mano de obra, equipo y todo lo necesario para su correcta ejecución.","ML",40.159999999999997,147.18,5910.75]
[null,"-","Subcapítulo",null,"   CUBIERTA",null,null,null,27898.15]
[null,null,"Concepto","CU-01","      Losa aligerada de 15 cm de espesor, a base de bovedilla de poliestireno y vigueta de alma abierta con armadura de acero diseño 10-36 de la marca deacero o similar, con patín de 12 cm de ancho por 5 cm de peralte, colado de capa de compresión de 4 cm con concreto F'c=200 kg/cm2, t.m.a. 3/4\", reforzado malla electrosoldada de 6x6-10/10, el concepto incluye: afine de la superficie superior  con acabado semipulido para recibir impermeabilización, cimbra y descimbra aparente, volado de concreto de 0.19 x 0.10 m, armado de con varilla de 3/8\", 1 varilla longitudinal y bastones @ .30m de .40m de longitud, colado, vibrado, curado y todo lo necesario para su correcta ejecución.","M2",46.07,471.13,21704.959999999999]
[null,null,"Concepto","CU-02","      Impermeabilización de losa de azotea a base de impermeabilizante elastomerico marca termoteck o similar de 3 años de garantía, a razón de 1 m2/lt, y  tela de refuerzo sencillo, incluye limpieza y preparación de la superficie.","M2",46.07,134.43,6193.19]
[null,"-","Subcapítulo",null,"   ACABADOS",null,null,null,7729.03]
[null,null,"Concepto","AC-01","      Aplanado de yeso en plafones, de 1.5 cm de espesor promedio, a plomo y regla, acabado pulido, reforzada con malla pollera en toda el área incluye: perfilado de aristas y remate en columnas, trabes y muros.","M2",39.71,144.56,5740.48]
[null,null,"Concepto","AC-02","      Sardinel de 10x10 cm a  base de concreto hidráulico de F'c=150 kg/cm2 t.m.a. 3/4\",con anclas de varilla corrugada de 3/8\" según especificaciones de proyecto. Incluye: Herramienta, mano de obra y todo lo necesario para su correcta ejecución.","ML",1.92,78.08,149.91]
[null,null,"Concepto","AC-03","      Suministro y colocación de azulejo de 20x30cm de color blanco de la marca porcelanite o similar asentado con cemento crest o similar, boquilla de 2 mm a base de junta crest anti-hongo o similar.  Incluye: Herramienta, mano de obra y todo lo necesario para su correcta ejecución.","M2",4,249.33,997.32]
[null,null,"Concepto","AC-04","      Suministro y colocación de piso antiderrapante de 20x20cm de color blanco de la marca porcelanite o similar asentado con cemento crest o similar, boquilla de 2 mm a base de junta crest anti-hongo o similar. Incluye: Herramienta, mano de obra y todo lo necesario para su correcta ejecución.","M2",3.75,217.32,814.95]
[null,null,"Concepto","AC-05","      Colocación de placa de cerámica en medidas de 20x20 cm, con cemento crest, en muro de fachada. Incluye; Material, herramienta, mano de obra y todo lo necesario para su correcta ejecución.","M2",1,26.37,26.37]
[null,"-","Subcapítulo",null,"   PUERTAS Y VENTANAS",null,null,null,10200.629999999999]
[null,null,"Concepto","PV-01","      Suministro e instalación de puerta tipo multypanel 0.90x2.06m con marco metálico de 0.96x2.10m fabricado a base de perfil tubular M-225., chapa tipo bola con llave para exterior modelo MH52T3  marca fanal o similar acabado en latón brillante para exterior, dos bisagras de 3\", pintura esmalte anticorrosivo color blanco en el marco metálico, el concepto incluye perfilado del hueco previo a su colocación con mortero cemento-arena 1:4. Incluye: Herramienta, mano de obra y todo lo necesario para su correcta ejecución.","PZA",1,1875.8,1875.8]
[null,null,"Concepto","PV-02","      Suministro e instalación de puerta de tambor 0.80x2.06m con marco metálico de 0.86x2.10m fabricado a base de perfil tubular M-225., chapa tipo bola para interior  marca fanal o similar, dos bisagras de 3\", pintura esmalte anticorrosivo color blanco en el marco metálico, el concepto incluye perfilado del hueco previo a su colocación con mortero cemento-arena 1:4. Incluye: Herramienta, mano de obra y todo lo necesario para su correcta ejecución.","PZA",2,1066.69,2133.38]
[null,null,"Concepto","PV-03","      Suministro e instalación de puerta de tambor 0.70x2.06m con marco metálico de 0.76x2.10m fabricado a base de perfil tubular M-225., chapa tipo bola para interior  marca fanal o similar, dos bisagras de 3\", pintura esmalte anticorrosivo color blanco en el marco metálico, el concepto incluye perfilado del hueco previo a su colocación con mortero cemento-arena 1:4. Incluye: Herramienta, mano de obra y todo lo necesario para su correcta ejecución.","PZA",1,996.58,996.58]
[null,null,"Concepto","PV-04","      Suministro y colocación  de ventana corrediza de 0.83x1.05m a base de perfil de aluminio anodizado natural  de 1 1/2\" con cristal claro de 3mm con un fijo lateral y un corredizo, incluye perfilado del hueco, previo a su colocación a base de mortero cemento-arena proporción  1:4. Incluye: Herramienta, mano de obra y todo lo necesario para su correcta ejecución.","PZA",3,987.18,2961.54]
[null,null,"Concepto","PV-05","      Suministro y colocación  de ventana corrediza de 0.60x0.40m a base de perfil de aluminio anodizado natural  de 1 1/2\" con cristal claro de 3mm con un fijo lateral y un corredizo, incluye perfilado del hueco previo a su colocación a base de mortero cemento-arena proporción  1:4. Incluye: Herramienta, mano de obra y todo lo necesario para su correcta ejecución.","PZA",1,698.79,698.79]
[null,null,"Concepto","PV-06","      Suministro e instalación de puerta tipo multypanel 0.80x2.06m con marco metálico de 0.86x2.10m fabricado a base de perfil tubular M-225., chapa tipo bola con llave para exterior modelo MH52T3  marca fanal o similar acabado en latón brillante para exterior, dos bisagras de 3\", pintura esmalte anticorrosivo color blanco en el marco metálico, el concepto incluye perfilado del hueco previo a su colocación con mortero cemento-arena 1:4. Incluye: Herramienta, mano de obra y todo lo necesario para su correcta ejecución.","PZA",1,1534.54,1534.54]
[null,"-","Subcapítulo",null,"   INSTALACIONES ELÉCTRICAS",null,null,null,7635.94]
[null,null,"Concepto","IE-01","      Suministro y colocación de centro de carga de dos circuitos  con una pieza de interruptor sencillo de 1x30 amperes, tubería galvanizada conduit pared delgada de 3/4\", el concepto incluye ranurado, resanado con mortero cemento-arena 1:4, prueba del correcto funcionamiento de las instalaciones y todo lo necesario para su correcto funcionamiento.","PZA",1,481.41,481.41]
[null,null,"Concepto","IE-02","      Salida eléctrica para tomacorriente, incluye; Contacto doble, tapa, poliducto eléctrico, cableado con cable thw #12, ranurado, sujeción de poliducto, mano de obra y equipo.","SAL",9,358.32,3224.88]
[null,null,"Concepto","IE-03","      Salida eléctrica para apagador sencillo,  incluye: tapa de una via, poliducto eléctrico naranja reforzado de 1/2\", cableado con cable thw #12, ranurado, resanado con mortero cemento-arena 1:4, sujeción de poliducto, mano de obra y equipo.","SAL",3,310.39,931.17]
[null,null,"Concepto","IE-04","      Salida eléctrica para apagador doble, incluye; tapa de dos vías, poliducto eléctrico naranja reforzado de 1/2\", cableado con cable thw #12, ranurado, resanado con mortero cemento-arena 1:4, sujeción de poliducto, mano de obra y equipo.","SAL",2,355.65,711.3]
[null,null,"Concepto","IE-05","      Salida eléctrica para lámpara,  incluye; cableado con cable thw #12,  caja octogonal de 4\", con poliducto naranja reforzado de 1/2\", cableado, ranurado, resanado con mortero cemento-arena 1:4, sujeción de poliducto, mano de obra y equipo.","SAL",7,279.08,1953.56]
[null,null,"Concepto","IE-06","      Suministro e instalación de foco incandescente de 100 watts según proyecto, incluye: la roseta de porcelana de 4\" y todo lo necesario para su correcta instalación.","PZA",7,47.66,333.62]
[null,"-","Subcapítulo",null,"   INSTALACIONES HIDRÁULICAS Y SANITARIAS",null,null,null,12529.61]
[null,null,"Concepto","IHS-05","      Salidas para instalación sanitaria de 1 1/2\",  2\" y 4\" para ventila,  lavabo, sanitario, tarja y regadera, tubería de pvc, conexiones, pegamento, ranurado, resanado con mortero cemento-arena 1:4, pendiente, materiales, mano de obra, herramienta y equipo.","SAL",5,364.4,1822]
[null,null,"Concepto","IHS-07","      Salidas para instalación hidráulica  para  regadera agua fría y caliente, lavabo, sanitario,  tarja o zinc, con tubería cpvc de 1/2\" marca duralon o similar, el concepto incluye: 2 Dispositivos economizadores de agua (DISEA M) marca EEFIMEX ó similar en regadera y lavabo, limpieza,  conexiones, ranurado, pendiente, materiales, mano de obra, herramienta,  equipo, resanado con mortero cemento-arena 1:4, prueba del correcto funcionamiento de las instalaciones y todo lo necesario para su correcto funcionamiento.","SAL",5,442.83,2214.15]
[null,null,"Concepto","IHS-08","      Suministro e instalación de sanitario marca lamosa o similar línea económica  en color blanco, incluye asiento, pijas, cuello de cera, manguera flexible, llave cromada de 1/2\".","PZA",1,1567.81,1567.81]
[null,null,"Concepto","IHS-09","      Suministro e instalación de lavabo marca lamosa o similar línea económica  en color blanco, incluye: Llave mezcladora marca helvex o similar línea económica, juego de patas, soportes, manguera flexible, llave cromada de 1/2\", cespol bote.","PZA",1,1203.52,1203.52]
[null,null,"Concepto","IHS-10","      Suministro e instalación de regadera línea económica  incluye llaves de empotrar, manerales,  brazo y chapetón.","PZA",1,1723.06,1723.06]
[null,null,"Concepto","IHS-11","      Construcción de registro sanitario de 46x45cm de medida interna, a base de ladrillo recocido común de la región de 7x14x28 cm, junteado con mortero cal-arena 1:5 + 10% de cemento, base y tapa a base de concreto F'c=150 kg/cm2 con t.m.a. 3/4\" reforzado con malla electrosoldada 6x6-10/10 el concepto incluye: enjarre interior con mortero cemento-arena 1:3, fabricación y colocación de dos jaladeras para la tapa a base de alambrón de 1/4\", con pases a base de poliducto de 1/2\". y todo lo necesario para su correcta ejecución.","PZA",1,671.94,671.94]
[null,null,"Concepto","IHS-12","      Suministro e instalación de tinaco de 600 lt de la marca rotoplas o similar con el sistema de 3 capas para garantizar una vida útil de 35 años, con todos los accesorios como jarro de aire, flotador #5, válvula de llenado ¾\", multiconector con válvula de esfera, tuerca unión y válvula check, incluye base para nivelar tinaco (detalle plano), la alimentación hidráulica por medio de tubería cpvc de 1/2\" y todo lo necesario para su correcto funcionamiento.","PZA",1,2027.04,2027.04]
[null,null,"Concepto","IHS-13","      Suministro e instalación de lavadero doble de empotrar, el concepto incluye; firme de concreto sencillo, murete de block de 12x20x40 cm, segun proyecto, la salida sanitaria con tubería pvc de 2\" y la salida hidráulica con tubería cpvc de 1/2\", llave de jardín de 1/2\", dispositivo economizador de agua (DISEA M) marca EEFIMEX ó similar,  resanado con mortero cemento-arena 1:4  y todo lo necesario para su correcto funcionamiento.","PZA",1,1300.0899999999999,1300.0899999999999]

{"sheet":"Hoja2","index":5,"n_rows":0,"n_cols":0,"rows_kept":0,"cut":false,"hidden":true,"merged":[]}

{"sheet":"Hoja3","index":6,"n_rows":0,"n_cols":0,"rows_kept":0,"cut":false,"hidden":true,"merged":[]}

{"sheet":"Hoja4","index":7,"n_rows":32,"n_cols":6,"rows_kept":32,"cut":false,"hidden":true,"merged":[]}
["-","Capítulo",null,"CONSTRUCCIÓN DE RECAMARA ADICIONAL  DE 16.48 M2 URBANA  A BASE DE LOSA DE CIMENTACIÓN, MUROS DE BLOCK, TECHO DE VIGUETA E INSTALACIONES ELÉCTRICAS, EN LOS MUNICIPIOS  DE SONORA."]
["-","Subcapítulo","1.-","      LOSA DE CIMENTACION"]
[null,"Concepto","PC-01U","      Limpia, trazo y nivelación.","M2",16.48]
[null,"Concepto","PC-02U","      Excavación a mano en terreno investigado en obra, cualquier profundidad, incluye afine de taludes y acarreo fuera de la obra de material no utilizable.","M3",0.38]
[null,"Concepto","PC-05U","      Losa de Cimentación de 9 cm de espesor, a base de concreto F'c=200  kg/cm2; t.m.a. 3/4\" hecho en obra; reforzado con  malla electrosoldada 6x6-10/10, plantilla de 5 cm de espesor a base de concreto F'c=100 kg/cm2 t.m.a. 3/4\", dentellón perimetral e intermedio a base de armex de 15x20 cm; anclaje a base de  bastones con varilla corrugada 3/8\" grado 42 o 5/16 DA 6000  @ 30 con 40 cm de largo donde se indique en los planos de proyecto,  acabado pulido, incluye: fumigacion antitermitas con fumigante aditivo adherente termidor o similar, curado, vibrado, colado y todo lo necesario para su correcta ejecución.","M2",16.48]
[null,"Concepto","PC-06U","      Impermeabilización a base de producto epóxico color negro aplicado sobre los 12 cm del desplante y 20 cm del espesor de la losa y dentellón perimetral  en todo el perímetro, incluye: materiales, mano de obra, herramienta y equipo necesarios para su correcta ejecución.","Ml",15.76]
[null,"Concepto","PC-07U","      Afine, nivelacion y compactacion de terreno natural para desplante de losa de cimentacio, incluye todo lo necesario para su correcta ejecucion.","M2",16.48]
["-","Subcapítulo","2.-","      ALBAÑILERIA"]
[null,"Concepto","MC-01U","      Construcción de muro de block de 12x20x40 cm junteado con mortero cemento arena proporción 1:4, incluye; Muro de enrase, plomeado, relleno de huecos en contorno de ventanas a base de concreto F´c= 150 kg/cm2 hecho en obra t.m.a. 3/4\", materiales, mano de obra, herramienta, equipo, con boquilla cortada a hueso.","M2",30.55]
[null,"Concepto","MC-02U","      Castillo K-1 de concreto F´c=150 kg/cm2 hecho en obra t.m.a. 3/4\", 12x12 cm de sección, armado con armex 12x12-4; incluye: cimbra aparente y descimbra; fabricación, colado y  curado del concreto; materiales y mano de obra, deberá de quedar con acabado final aparente.","Ml",10.06]
[null,"Concepto","MC-02UA","      Castillo K-2 ahogados de 2.50 ML de altura incluye el pretil, con  concreto F´c=150 kg/cm2 hecho en obra t.m.a. 3/4\", con una varilla corrugada de refuerzo de 3/8\";  armado, colado y  vibrado del concreto; materiales y mano de obra,.","Ml",10.029999999999999]
[null,"Concepto","MC-03U","      Cadena de cerramiento de concreto F´c=150 kg/cm2 hecho en obra t.m.a. 3/4\", 12x20 cm de sección, armada con armex 12X20-4; incluye: cimbra aparente y descimbra; fabricación, colado y  curado del concreto; materiales y mano de obra, deberá de quedar con acabado final aparente.","Ml",15.76]
[null,"Concepto","MC-04U","      Construcción de pretil  a base de block de 12x20x40 cm junteado con mortero cemento arena proporción 1:4, incluye; plomeado, relleno de huecos en parte superior y en parte inferior para nivelar con concreto F´c= 150 kg/cm2 hecho en obra t.m.a. 3/4\", materiales, mano de obra, herramienta, equipo, con boquilla cortada a hueso.","M2",4.03]
[null,"Concepto","MC-05U","      Construcción de diamantes a base de  mortero cemento-arena 1:4  2.5 cm de e spesor promedio  acabado floteado para recibir impermeabilizacion, incluye trazo y ejecucion de pendientes, elevacion de materiales hasta 3.00 m, material, herramienta y mano de obra.","m2",2.27]
[null,"Concepto","MC-06U","      Suministro y Colocacion de gargola tipo cuadrada sencilla incluye demolicion, mortero cemento-arena 1:4 y todo lo necesario para su correcta instalacion.","pza",2]
["-","Subcapítulo","3.-","      CUBIERTA"]
[null,"Concepto","CU-01U","      Losa aligerada de 15 cm de espesor, a base de bovedilla de poliestireno y vigueta de alma abierta con armadura de acero diseño 10-36 de la marca deacero o similar, con patín de 12 cm de ancho por 5 cm de peralte, colado de capa de compresión de 4 cm con concreto F'c=200 kg/cm2, t.m.a. 3/4\", reforzado malla electrosoldada de 6x6-10/10, el concepto incluye: afine de la superficie superior  con acabado semipulido para recibir impermeabilización, cimbra y descimbraaparente, colado, vibrado, curado y todo lo necesario para su correcta ejecución. Para la ejecucion de este concepto el beneficiario aportara el importe de 4,000 pesos en la compra de los materiales alambre recocido, curacreto, malla electrosoldada 6x6 - 10/10, Vigueta alma abierta con armadura 10-36 y Bovedilla de poliestireno de 61x122 x11 cms de espesor","M2",16.48]
[null,"Concepto","CU-02U","      Impermeabilización de losa de azotea a base de impermeabilizante elastomerico de 3 años de garantía,a razón de 1 m2/lt, y  tela de refuerzo sencillo, incluye limpieza y preparación de la superficie.","M2",16.48]
["-","Subcapítulo","4.-","      ACABADOS"]
[null,"Concepto","AC-01U","      Chaflán de 10x10 cms. con pasta de cemento-arena prop. 1:4, según detalle indicado en los planos, Incluye: Material, mano de obra, herramienta y todo lo necesario para su correcta ejecución.","ML",8.92]
[null,"Concepto","AC-03U","      Aplanado de yeso en plafones, de 1.5 cm de espesor promedio, a plomo y regla, acabado pulido, reforzada con malla pollera en toda el área incluye: perfilado de aristas y remate en columnas, trabes y muros.","M2",14.59]
[null,"Concepto","AC-09U","      Cemento blanco, en muro de fachada para colocacion de placa Incluye; Material, herramienta, mano de obra y todo lo necesario para su correcta ejecución.","Pza",1]
[null,"Concepto","AC-14U","      Pintura vinílica lavable en muros y plafond  incluye: material, limpieza, rebabeado, preparación de la superficie, aplicación de sellador vinílico y dos manos de pintura.","M2",92.95]
[null,"Concepto","AC-13U","      Aplanado de mezcla en muros, a base de mortero cemento arena 1:3,  acabado fino floteado , incluye: material, mano de obra, remates y emboquillado.","m2",78.36]
["-","Subcapítulo","5.-","      PUERTAS Y VENTANAS"]
[null,"Concepto","PV-04U","      Suministro y colocación  de ventana corrediza de 0.83x1.05m a base de perfil de aluminio anodizado natural  de 1 1/2\" con cristal claro de 3mm con un fijo lateral y un corredizo, incluye perfilado del hueco, previo a su colocación a base de mortero cemento-arena proporción  1:4. Incluye: Herramienta, mano de obra y todo lo necesario para su correcta ejecución.","Pza",1]
[null,"Concepto","PV-06U","      Suministro e instalación de puerta de 0.90x2.10 mts, tipo multypanel lisa, fabricado con hoja de acero liso galvanizado cal. 28, con bastidor de madera de pino estufado, terminado en color blanco, relleno de esouma rigida de poliuretano con una densidad de 32 a 34 kg/m3 .,incluye marco metálico fabricado a base de perfil tubular M-225,chapa tipo bola con llave para exterior  acabado en latón brillante para exterior, dos bisagras de 3\", pintura esmalte anticorrosivo color blanco, perfilado del hueco previo a su colocación con mortero cemento-arena 1:4. Herramienta, mano de obra y todo lo necesario para su correcta ejecución.","Pza",1]
["-","Subcapítulo","6.-","      INSTALACIONES ELECTRICAS"]
[null,"Concepto","IE-02U","      Salida eléctrica para tomacorriente, incluye; Contacto doble, tapa, poliducto eléctrico, cableado, ranurado, sujeción de poliducto, mano de obra y equipo.","Sal",1]
[null,"Concepto","IE-03U","      Salida eléctrica para apagador sencillo,  incluye: tapa de una via, poliducto eléctrico naranja reforzado de 1/2\", cableado con cable thw #12, ranurado, resanado con mortero cemento-arena 1:4, sujeción de poliducto, mano de obra y equipo.","Sal",1]
[null,"Concepto","IE-05U","      Salida eléctrica para lámpara,  incluye; la roseta de porcelana de 4\" , cableado con cable thw #12,  caja octogonal de 4\", con poliducto naranja reforzado de 1/2\", cableado, ranurado, resanado con mortero cemento arena 1:4, sujeción de poliducto, mano de obra y equipo.","Sal",1]
[null,"Concepto","IE-06U","      Suministro  de foco fluorescente espiral 23 w. De luz fria con 100 W de iluminacion según proyecto,","Pza",1]

{"sheet":"datos","index":8,"n_rows":10,"n_cols":9,"rows_kept":10,"cut":false,"hidden":true,"merged":[]}
["NUMERO"]
["LOCALIDAD"]
["MUNICIPIO","VARIOS"]
["ACCIONES",25]
[null,"VEINTICINCO"]
["F.INICIO",null,null,null,null,null,null,{"$f":"+H5+1","v":1},{"$f":"CHAR(H6)","v":"\u0001"}]
["F.TERMINO",{"$f":"IF(+B6=\"\",\"\",+B6+B8-1)","v":""},null,null,null,null,null,2,"\u0002"]
["PLAZO",90,null,null,null,null,null,3,"\u0003"]
["DESCRIPCION",{"$f":"CONCATENATE(\"CONSTRUCCION DE \",B4,\"(\",B5,\")\",\" RECAMARAS ADICIONALES  DE 16.65 M2 EN AREA URBANA  A BASE DE LOSA DE CIMENTACIÓN, MUROS DE BLOCK, TECHO DE VIGUETA E INSTALACIONES ELÉCTRICAS, EN \",B2,\" VARIAS LOCALIDADES Y MUNICIPIOS DE \",\"SONORA.\")","v":"CONSTRUCCION DE 25(VEINTICINCO) RECAMARAS ADICIONALES  DE 16.65 M2 EN AREA URBANA  A BASE DE LOSA DE CIMENTACIÓN, MUROS DE BLOCK, TECHO DE VIGUETA E INSTALACIONES ELÉCTRICAS, EN  VARIAS LOCALIDADES Y MUNICIPIOS DE SONORA."}]
["F. PRESENTACION"]

{"sheet":"OPUS","index":9,"n_rows":34,"n_cols":12,"rows_kept":34,"cut":false,"hidden":true,"merged":[]}
["Capítulo","-",null,"CONSTRUCCION DE 5(CINCO) RECAMARAS ADICIONALES  DE 16.65 M2 EN AREA URBANA  A BASE DE LOSA DE CIMENTACIÓN, MUROS DE BLOCK, TECHO DE VIGUETA E INSTALACIONES ELÉCTRICAS, EN  VARIAS LOCALIDADES DEL MUNICIPIO DE SAN MIGUEL DE HORCASITAS, SONORA."]
["Subcapítulo","-","1.-","   LOSA DE CIMENTACION"]
["Concepto",null,"PC-01U","      Limpia, trazo y nivelación.","M2",416.25,null,null,16.649999999999999]
["Concepto",null,"PC-07U","      Afine y compactacion de terreno por medios mecanicos utilizando bailarina, para desplante de losa de cimentacion, incluye todo lo necesario para su correcta ejecucion.","M2",416.25,null,null,16.649999999999999]
["Concepto",null,"PC-02U","      Excavación a mano en terreno investigado en obra, cualquier profundidad, incluye afine de taludes y acarreo fuera de la obra de material no utilizable.","M3",6,null,null,0.24]
["Concepto",null,"PC-05U","      Losa de Cimentación de 9 cm de espesor, a base de concreto F'c=200  kg/cm2; t.m.a. 3/4\" hecho en obra; reforzado con  malla electrosoldada 6x6-10/10,  dentellón perimetral e intermedio a base de armex de 15x20 cm; anclaje a base de  bastones con varilla corrugada 3/8\" grado 42 o 5/16 DA 6000  @ 30 con 40 cm de largo donde se indique en los planos de proyecto,  acabado pulido, incluye: curado, vibrado, colado y todo lo necesario para su correcta ejecución.","M2",416.25,null,null,16.649999999999999]
["Subcapítulo","-","2.-","   ALBAÑILERIA",null,0,null,null,0]
["Concepto",null,"MC-01U","      Construcción de muro de block de 12x20x40 cm junteado con mortero cemento arena proporción 1:4, incluye; plomeado, relleno de huecos en contorno de ventanas a base de concreto F´c= 150 kg/cm2 hecho en obra t.m.a. 3/4\", materiales, mano de obra, herramienta, equipo, deberá quedar acabado comun.","M2",657.5,null,null,26.3]
["Concepto",null,"MC-02U","      Castillo K-1 de concreto F´c=150 kg/cm2 hecho en obra t.m.a. 3/4\", 12x12 cm de sección, armado con armex 12x12-4; incluye: cimbra aparente y descimbra; fabricación, colado y  curado del concreto; materiales y mano de obra, deberá de quedar con acabado final aparente.","Ml",255,null,null,10.199999999999999]
["Concepto",null,"MC-02UA","      Castillo K-2 ahogados desde el desplante hasta la losa de azotea cruzando las cadenas o dalas de refuerzo a base de concreto F´c=150 kg/cm2 hecho en obra t.m.a. 3/4\", con una varilla corrugada de refuerzo de 3/8\" a todo lo largo el concepto incluye:  armado, colado, vibrado del concreto, materiales , mano de obra, herramienta y todo lo necesario para su correcta ejecucion.","Ml",216.5,null,null,8.66]
["Concepto",null,"MC-08U","      Cadena intermedia ubicada a la quinta hilada a base block dala de 12x20x40 cms, relleno con concreto F'c=150 kg/cm2 y una varilla corrugada de 3/8\" el concepto incluye block dala de 12x20x40 cms, mortero cemento -arena 1:4, materiales, mano de obra, herramienta, equipo y todo lo necesario para su correcta ejecucion.","ml",339.25,null,null,13.57,{"$f":"1/0.4","v":2.5},3.2,{"$f":"+K11/J11","v":1.28}]
["Concepto",null,"MC-12U","      Cadena cerramiento ubicada a la onceava hilada a base block dala de 12x20x40 cms, relleno con concreto F'c=150 kg/cm2 y una varilla corrugada de 3/8\" el concepto incluye block dala de 12x20x40 cms,  apuntalamiento en claros de puertas y ventanas, mortero cemento -arena 1:4, materiales, mano de obra, herramienta, equipo y todo lo necesario para su correcta ejecucion.","ml",384,null,null,15.36]
["Concepto",null,"MC-09U","      Construcción de muro de enrase a base de block de 12x20x40 cm junteado con mortero cemento arena proporción 1:4, incluye; materiales, mano de obra, herramienta, equipo, deberá quedar acabado comun.","M2",96,null,null,3.84,12,13,{"$f":"+K13/J13","v":1.0833333333333299}]
["Subcapítulo","-","3.-","   CUBIERTA",null,0,null,null,0]
["Concepto",null,"CU-01U","      Losa aligerada de 15 cm de espesor, a base de bovedilla de poliestireno con densidad de 12 kg/m3 y espesor de 11 cms,  vigueta pretensada modelo V11-40 tipo trabis o similar, con patín de 10.50 cm de ancho, colado de capa de compresión  de 4  cms con concreto F'c=200 kg/cm2, t.m.a. 3/4\", reforzado malla electrosoldada de 6x6-10/10, el concepto incluye: afine de la superficie superior  con acabado pulido para recibir impermeabilización, cimbra y descimbra aparente, tuino o chaflan de madera para formar gotero, colado, vibrado, curado y todo lo necesario para su correcta ejecución.","M2",437.75,null,null,17.510000000000002]
["Concepto",null,"CU-02U","      Impermeabilización de losa de azotea a base de impermeabilizante fibratado de 5 años de garantía de la marca PRISA o similar, a razón de 1 m2/lt, y  tela reforzada, incluye limpieza, preparación de la superficie, sellado y todo lo necesario para su correcta ejecucion.","M2",437.75,null,null,17.510000000000002]
["Subcapítulo","-","4.-","   ACABADOS",null,0,null,null,0]
["Concepto",null,"AC-03U","      Aplanado de yeso en plafones, de 1.0 cm de espesor promedio, a plomo y regla, acabado pulido, reforzada con cinta auto adherible de fibra de vidrio en un ancho de 20 cms a lo largo de la vigueta incluye: hule negro para no ensuciar pisos, perfilado de aristas, remate en losas y muros.","M2",369.5,null,null,14.78]
["Concepto",null,"AC-13UA","      Aplanado grueso en muros exteriores  a base de  mortero cemento arena 1:4 en un espesor minimo de 1 cms , y terminado fino floteado con mortero cemento-arena 1:3 incluye: perfilado de aristas, remates, material, mano de obra y emboquillado.","m2",1075.25,null,null,43.01]
["Concepto",null,"AC-13UB","      Repellado en interiores a base de  mortero cemento arena 1:4 y terminado fino floteado incluye: perfilado de aristas, remates, material, mano de obra y emboquillado.","m2",907,null,null,36.28]
["Concepto",null,"AC-14U","      Pintura vinílica lavable garantia de 10 años de marca berelex o similar, en color blanco sobre muros exteriores, interiores y plafond de yeso, incluye: hule negro para para no manchar pisos, material, limpieza, rebabeado, preparación de la superficie, aplicación de sellador vinílico y dos manos de pintura.","M2",2351.75,null,null,94.07]
["Concepto",null,"AC-15U","      Suministro y colocacion de placa ceramica con logotipo coves sonora formato de 31x61 cms asentada al muro con cemento blanco de la marca crest o similar, ahogada en el enjarre concepto incluye materiales, mano de obra, herramienta y todo lo necesario para su correcta ejecucion.","pza",25,null,null,1]
["Concepto",null,"AC-16U","      Suministro y colocacion de manta fabricada en vinil de 1.00 x 1.00 mts con informacion relacionado con el programa el concepto incluye material, mano de obra, herramienta y todo lo necesario para su correcta ejecucion.","pza",25,null,null,1]
["Subcapítulo","-","5.-","   PUERTAS Y VENTANAS",null,0,null,null,0]
["Concepto",null,"PV-01U","      Suministro e instalación de puerta de 0.90x2.06 mts, tipo multypanel lisa, fabricado con hoja de acero liso galvanizado cal. 28, con bastidor de madera de pino estufado, terminado en color blanco, relleno de esouma rigida de poliuretano con una densidad de 32 a 34 kg/m3 .,incluye marco metálico de 0.96x2.10m fabricado a base de perfil tubular M-225, chapa tipo bola con llave para exterior modelo MH52T3  marca fanal o similar acabado en latón brillante para exterior, dos bisagras de 3\", pintura esmalte anticorrosivo color blanco, perfilado del hueco previo a su colocación con mortero cemento-arena 1:4. Herramienta, mano de obra y todo lo necesario para su correcta ejecución.","Pza",25,null,null,1]
["Concepto",null,"PV-04U","      Suministro y colocación  de ventana corrediza de 0.83x1.05m a base de perfil de aluminio anodizado natural  de 1 1/2\" con cristal claro de 3mm con un fijo lateral y un corredizo, incluye: perfilado del hueco, previo a su colocación a base de mortero cemento-arena proporción  1:4. silicon, Herramienta, mano de obra y todo lo necesario para su correcta ejecución.","Pza",25,null,null,1]
["Subcapítulo","-","6.-","   INSTALACIONES ELECTRICAS",null,0,null,null,0]
["Concepto",null,"IE-02U","      Salida eléctrica para tomacorriente, incluye; Contacto doble, tapa, poliducto eléctrico, cableado, ranurado, sujeción de poliducto, mano de obra y equipo.","Sal",50,null,null,2]
["Concepto",null,"IE-04U","      Salida eléctrica para apagador doble de palanca color marfil marca leviton o similar , incluye; tapa de dos vías, poliducto eléctrico naranja reforzado de 1/2\", cableado con cable thw #12, ranurado, resanado con mortero cemento-arena 1:4, sujeción de poliducto, mano de obra y equipo.","Sal",25,null,null,1]
["Concepto",null,"IE-05U","      Salida eléctrica para lámpara,  incluye; cableado con cable thw #12,  caja octogonal de 4\", con poliducto naranja reforzado de 1/2\", cableado, ranurado, resanado con mortero cemento arena 1:4, sujeción de poliducto, mano de obra y equipo.","Sal",50,null,null,2]
["Concepto",null,"IE-06U","      Suministro  de foco fluorescente espiral 23 w. De luz fria con 100 W de iluminacion según proyecto,","Pza",50,null,null,2]
["Concepto",null,"IE-07U","      Alimentación eléctrica de la vivienda existente a la recamara adicional para una distancia maxima de 6 mts el concepto incluye; poliducto naranja reforzado, cable thw #12, prueba del funcionamiento de las instalaciones y todo lo necesario para su correcta ejecucion.","Sal,",25,null,null,1]
["Subcapítulo","-","7.-","   LIMPIEZA DE LA OBRA",null,0,null,null,0]
["Concepto",null,"LIM-01","      Limpieza de la obra  que consiste en  limpiar pisos, muros, techos, vidrios, puertas, ventanas, accesorios electricos  incluye carga, acarreo dentro y fuera de la obra de todo material de desperdicio producto de la misma durante el tiempo de ejecucion de la obra.","M2",416.25,null,null,16.649999999999999]

{"sheet":"Hoja6","index":10,"n_rows":34,"n_cols":6,"rows_kept":34,"cut":false,"hidden":true,"merged":[]}
["Capítulo","-",null,"CONSTRUCCION DE RECAMARA ADICIONAL  DE 16.65 M2 EN AREA URBANA  A BASE DE LOSA DE CIMENTACIÓN, MUROS DE BLOCK, TECHO DE VIGUETA E INSTALACIONES ELÉCTRICAS, EN  VARIAS LOCALIDADES DEL MUNICIPIO DE __________________., SONORA."]
["Subcapítulo","-","1.-","   LOSA DE CIMENTACION"]
["Concepto",null,"PC-01U","      Limpia, trazo y nivelación.","M2",416.25]
["Concepto",null,"PC-07U","      Afine y compactacion de terreno por medios mecanicos utilizando bailarina, para desplante de losa de cimentacion, incluye todo lo necesario para su correcta ejecucion.","M2",416.25]
["Concepto",null,"PC-02U","      Excavación a mano en terreno investigado en obra, cualquier profundidad, incluye afine de taludes y acarreo fuera de la obra de material no utilizable.","M3",6]
["Concepto",null,"PC-05U","      Losa de Cimentación de 9 cm de espesor, a base de concreto F'c=200  kg/cm2; t.m.a. 3/4\" hecho en obra; reforzado con  malla electrosoldada 6x6-10/10,  dentellón perimetral e intermedio a base de armex de 15x20 cm; anclaje a base de  bastones con varilla corrugada 3/8\" grado 42 o 5/16 DA 6000  @ 30 con 40 cm de largo donde se indique en los planos de proyecto,  acabado pulido, incluye: curado, vibrado, colado y todo lo necesario para su correcta ejecución.","M2",416.25]
["Subcapítulo","-","2.-","   ALBAÑILERIA"]
["Concepto",null,"MC-01U","      Construcción de muro de block de 12x20x40 cm junteado con mortero cemento arena proporción 1:4, incluye; plomeado, relleno de huecos en contorno de ventanas a base de concreto F´c= 150 kg/cm2 hecho en obra t.m.a. 3/4\", materiales, mano de obra, herramienta, equipo, deberá quedar acabado comun.","M2",657.5]
["Concepto",null,"MC-02U","      Castillo K-1 de concreto F´c=150 kg/cm2 hecho en obra t.m.a. 3/4\", 12x12 cm de sección, armado con armex 12x12-4; incluye: cimbra aparente y descimbra; fabricación, colado y  curado del concreto; materiales y mano de obra, deberá de quedar con acabado final aparente.","Ml",255]
["Concepto",null,"MC-02UA","      Castillo K-2 ahogados desde el desplante hasta la losa de azotea cruzando las cadenas o dalas de refuerzo a base de concreto F´c=150 kg/cm2 hecho en obra t.m.a. 3/4\", con una varilla corrugada de refuerzo de 3/8\" a todo lo largo el concepto incluye:  armado, colado, vibrado del concreto, materiales , mano de obra, herramienta y todo lo necesario para su correcta ejecucion.","Ml",216.5]
["Concepto",null,"MC-08U","      Cadena intermedia ubicada a la quinta hilada a base block dala de 12x20x40 cms, relleno con concreto F'c=150 kg/cm2 y una varilla corrugada de 3/8\" el concepto incluye block dala de 12x20x40 cms, mortero cemento -arena 1:4, materiales, mano de obra, herramienta, equipo y todo lo necesario para su correcta ejecucion.","ml",339.25]
["Concepto",null,"MC-12U","      Cadena intermedia ubicada a la onceava hilada a base block dala de 12x20x40 cms, relleno con concreto F'c=150 kg/cm2 y una varilla corrugada de 3/8\" el concepto incluye block dala de 12x20x40 cms,  apuntalamiento en claros de puertas y ventanas, mortero cemento -arena 1:4, materiales, mano de obra, herramienta, equipo y todo lo necesario para su correcta ejecucion.","ml",384]
["Concepto",null,"MC-09U","      Construcción de muro de enrase a base de block de 12x20x40 cm junteado con mortero cemento arena proporción 1:4, incluye; materiales, mano de obra, herramienta, equipo, deberá quedar acabado comun.","M2",96]
["Subcapítulo","-","3.-","   CUBIERTA"]
["Concepto",null,"CU-01U","      Losa aligerada de 15 cm de espesor, a base de bovedilla de poliestireno con densidad de 12 kg/m3 y espesor de 11 cms,  vigueta pretensada modelo V11-40 tipo trabis o similar, con patín de 10.50 cm de ancho, colado de capa de compresión  de 4  cms con concreto F'c=200 kg/cm2, t.m.a. 3/4\", reforzado malla electrosoldada de 6x6-10/10, el concepto incluye: afine de la superficie superior  con acabado pulido para recibir impermeabilización, cimbra y descimbra aparente, tuino o chaflan de madera para formar gotero, colado, vibrado, curado y todo lo necesario para su correcta ejecución.","M2",437.75]
["Concepto",null,"CU-02U","      Impermeabilización de losa de azotea a base de impermeabilizante fibratado de 5 años de garantía de la marca PRISA o similar, a razón de 1 m2/lt, y  tela reforzada, incluye limpieza, preparación de la superficie, sellado y todo lo necesario para su correcta ejecucion.","M2",437.75]
["Subcapítulo","-","4.-","   ACABADOS"]
["Concepto",null,"AC-03U","      Aplanado de yeso en plafones, de 1.0 cm de espesor promedio, a plomo y regla, acabado pulido, reforzada con cinta auto adherible de fibra de vidrio en un ancho de 20 cms a lo largo de la vigueta incluye: hule negro para no ensuciar pisos, perfilado de aristas, remate en losas y muros.","M2",369.5]
["Concepto",null,"AC-13UA","      Aplanado grueso en muros exteriores  a base de  mortero cemento arena 1:4 en un espesor minimo de 1 cms , y terminado fino floteado con mortero cemento-arena 1:3 incluye: perfilado de aristas, remates, material, mano de obra y emboquillado.","m2",1075.25]
["Concepto",null,"AC-13UB","      Repellado en interiores a base de  mortero cemento arena 1:4 y terminado fino floteado incluye: perfilado de aristas, remates, material, mano de obra y emboquillado.","m2",907]
["Concepto",null,"AC-14U","      Pintura vinílica lavable garantia de 10 años de marca berelex o similar, en color blanco sobre muros exteriores, interiores y plafond de yeso, incluye: hule negro para para no manchar pisos, material, limpieza, rebabeado, preparación de la superficie, aplicación de sellador vinílico y dos manos de pintura.","M2",2351.75]
["Concepto",null,"AC-15U","      Suministro y colocacion de placa ceramica con logotipo coves sonora formato de 31x61 cms asentada al muro con cemento blanco de la marca crest o similar, ahogada en el enjarre concepto incluye materiales, mano de obra, herramienta y todo lo necesario para su correcta ejecucion.","pza",25]
["Concepto",null,"AC-16U","      Suministro y colocacion de manta fabricada en vinil de 1.00 x 1.00 mts con informacion relacionado con el programa el concepto incluye material, mano de obra, herramienta y todo lo necesario para su correcta ejecucion.","pza",25]
["Subcapítulo","-","5.-","   PUERTAS Y VENTANAS"]
["Concepto",null,"PV-01U","      Suministro e instalación de puerta de 0.90x2.06 mts, tipo multypanel lisa, fabricado con hoja de acero liso galvanizado cal. 28, con bastidor de madera de pino estufado, terminado en color blanco, relleno de esouma rigida de poliuretano con una densidad de 32 a 34 kg/m3 .,incluye marco metálico de 0.96x2.10m fabricado a base de perfil tubular M-225, chapa tipo bola con llave para exterior modelo MH52T3  marca fanal o similar acabado en latón brillante para exterior, dos bisagras de 3\", pintura esmalte anticorrosivo color blanco, perfilado del hueco previo a su colocación con mortero cemento-arena 1:4. Herramienta, mano de obra y todo lo necesario para su correcta ejecución.","Pza",25]
["Concepto",null,"PV-04U","      Suministro y colocación  de ventana corrediza de 0.83x1.05m a base de perfil de aluminio anodizado natural  de 1 1/2\" con cristal claro de 3mm con un fijo lateral y un corredizo, incluye: perfilado del hueco, previo a su colocación a base de mortero cemento-arena proporción  1:4. silicon, Herramienta, mano de obra y todo lo necesario para su correcta ejecución.","Pza",25]
["Subcapítulo","-","6.-","   INSTALACIONES ELECTRICAS"]
["Concepto",null,"IE-02U","      Salida eléctrica para tomacorriente, incluye; Contacto doble, tapa, poliducto eléctrico, cableado, ranurado, sujeción de poliducto, mano de obra y equipo.","Sal",50]
["Concepto",null,"IE-04U","      Salida eléctrica para apagador doble de palanca color marfil marca leviton o similar , incluye; tapa de dos vías, poliducto eléctrico naranja reforzado de 1/2\", cableado con cable thw #12, ranurado, resanado con mortero cemento-arena 1:4, sujeción de poliducto, mano de obra y equipo.","Sal",25]
["Concepto",null,"IE-05U","      Salida eléctrica para lámpara,  incluye; cableado con cable thw #12,  caja octogonal de 4\", con poliducto naranja reforzado de 1/2\", cableado, ranurado, resanado con mortero cemento arena 1:4, sujeción de poliducto, mano de obra y equipo.","Sal",50]
["Concepto",null,"IE-06U","      Suministro  de foco fluorescente espiral 23 w. De luz fria con 100 W de iluminacion según proyecto,","Pza",50]
["Concepto",null,"IE-07U","      Alimentación eléctrica de la vivienda existente a la recamara adicional para una distancia maxima de 6 mts el concepto incluye; poliducto naranja reforzado, cable thw #12, prueba del funcionamiento de las instalaciones y todo lo necesario para su correcta ejecucion.","Sal,",25]
["Subcapítulo","-","8.-","   LIMPIEZA DE LA OBRA"]
["Concepto",null,"LIM-01","      Limpieza de la obra  que consiste en  limpiar pisos, muros, techos, vidrios, puertas, ventanas, accesorios electricos  incluye carga, acarreo dentro y fuera de la obra de todo material de desperdicio producto de la misma durante el tiempo de ejecucion de la obra.","M2",416.25]

{"sheet":"Hoja5","index":11,"n_rows":19,"n_cols":7,"rows_kept":19,"cut":false,"hidden":true,"merged":[]}
[]
["mat",2871709.91]
["mo",2776695.26]
["herr",82264.399999999994]
["eq",31959.53,{"$f":"SUM(B4:B5)","v":114223.93}]
[]
["cd",{"$f":"SUM(B2:B6)","v":5762629.0999999996}]
[]
["i",724354.63,{"$f":"+B9/B7","v":0.12570000000000001}]
["f",96045.85,{"$f":"+B10/(B7+B9)","v":1.4800000000000001E-2},{"$f":"SUM(B7:B10)","v":6583029.5800000001}]
["u",526652.79,{"$f":"+B11/D10","v":0.08},{"$f":"SUM(B7:B11)","v":7109682.3700000001},73696.75,51587.73,{"$f":"+F11/E11","v":0.7}]
["ca",14210.85,{"$f":"+B12/D11","v":2E-3}]
[]
[null,{"$f":"SUM(B9:B13)","v":1361264.12}]
[null,{"$f":"+B7+B14","v":7123893.2199999997}]
[]
[null,505278.9]
[null,286353.90000000002]
[null,218925]